Workbook

Sheet Dashboard
BOG2018: BOG2018RdR35pQ

Sheet Data
D2: =IF(ROUND(D42-D55-D63,5)=0,"OK",D42-D55-D63) -> OK | E2: =IF(ROUND(E42-E55-E63,5)=0,"OK",E42-E55-E63) -> OK | F2: =IF(ROUND(F42-F55-F63,5)=0,"OK",F42-F55-F63) -> OK | G2: =IF(G42-G55-G63=0,"OK",G42-G55-G63) -> OK | H2: =IF(ROUND(H42-H55-H63,5)=0,"OK",H42-H55-H63) -> OK | I2: =IF(I42-I55-I63=0,"OK",I42-I55-I63) -> OK | J2: =IF(ROUND(J42-J55-J63,5)=0,"OK",J42-J55-J63) -> OK
D3: =IF(D26=D62,"OK",D26-D62) -> OK | E3: =IF(E26=E62,"OK",E26-E62) -> OK | F3: OK | G3: OK | H3: OK | I3: OK | J3: OK
C4: (En millones de pesos colombianos) | D4: 2011 | E4: =D4+1 -> 2012 | F4: 2013 | G4: 2014 | H4: 2015 | I4: 2016 | J4: 2017
C6: ESTADO INTEGRAL DE RESULTADOS
B8: 1 | C8: Ventas Brutas | D8: =6188904+716554 -> 6905458 | E8: =6599851+859796 -> 7459647 | F8: =((1227361+3139775)*1879.53)/1000 -> 8208163.126 | G8: =(1311388+3121967)*2017.85/1000 -> 8945845.387 | H8: =(1597647+2484895)*2771.55/1000 -> 11314969.28 | I8: =(2016433+1824658)*3040.09/1000 -> 11677262.34 | J8: =(2180293+1920846)*2957.52/1000 -> 12129200.62
B9: 2 | C9: (Devoluciones, Rebajas y Descuentos) | D9: 0 | E9: 0 | F9: 0 | G9: 0 | H9: 0 | I9: 0 | J9: 0
B10: 3 | C10: Otros Ingresos Operacionales | D10: =159325 -> 159325 | E10: 189175 | F10: =(242468*1879.53)/1000 -> 455725.88 | G10: =(268676)*2017.85/1000 -> 542147.8666 | H10: =278799*2771.55/1000 -> 772705.3685 | I10: =297247*3040.09/1000 -> 903657.6322 | J10: =(340545)*2957.52/1000 -> 1007168.648
B11: 4 | C11: Ventas Netas | D11: =D8-D9+D10 -> 7064783 | E11: =E8-E9+E10 -> 7648822 | F11: =F8-F9+F10 -> 8663889.006 | G11: 9487993.253 | H11: 12087674.65 | I11: 12580919.97 | J11: 13136369.26
B12: 5 | C12: Costo de Ventas | D12: =5247355-377133 -> 4870222 | E12: =5695446-300868 -> 5394578 | F12: =((4224673-(584468+257273+169580))*1879.53)/1000 -> 6039591.485 | G12: =((4417446-(199900+165396+602210))*2017.85)/1000 -> 6961461.429 | H12: =((4142525-(230732+176195+612775))*2771.55)/1000 -> 8655060.086 | I12: =((3879868-(269546+187560+545318))*3040.09/1000) -> 8747688.73 | J12: =(92471+923468+450209+278772+166869+280536+242587+706778)*2957.52/1000 -> 9291611.009
B13: 6 | C13: Utilidad Bruta | D13: =D11-D12 -> 2194561 | E13: 2254244 | F13: 2624297.522 | G13: 2526531.824 | H13: 3432614.563 | I13: 3833231.24 | J13: 3844758.255
B14: 7 | C14: Gastos Operacionales | D14: =1295578+61346 -> 1356924 | E14: =998048+448293+17396 -> 1463737 | F14: =((584468+257273)*1879.53)/1000 -> 1582077.462 | G14: =((165396+602210)*2017.85)/1000 -> 1548913.767 | H14: =(176195+612775)*2771.55/1000 -> 2186669.803 | I14: =(187560+545318)*3040.09/1000 -> 2228015.079 | J14: =(515073+177864)*2957.52/1000 -> 2049375.036
B15: 8 | C15: EBITDA | D15: =D13-D14 -> 837637 | E15: =E13-E14 -> 790507 | F15: =F13-F14 -> 1042220.06 | G15: 977618.0572 | H15: 1245944.759 | I15: 1605216.161 | J15: 1795383.219
B16: 9 | C16: Depreciación y Amortización | D16: =377133+13623 -> 390756 | E16: =300868+15085 -> 315953 | F16: =169580*1879.53/1000 -> 318730.6974 | G16: =199900*2017.85/1000 -> 403368.215 | H16: =230732*2771.55/1000 -> 639485.2746 | I16: =269546*3040.09/1000 -> 819444.0991 | J16: =(313413)*2957.52/1000 -> 926925.2158
B17: 10 | C17: Utilidad Operacional | D17: =D15-D16 -> 446881 | E17: =E15-E16 -> 474554 | F17: 723489.3624 | G17: 574249.8422 | H17: 606459.4848 | I17: 785772.0623 | J17: =J15-J16 -> 868458.0029
B18: 11 | C18: Gasto de Intereses | D18: 183772 | E18: =177978 -> 177978 | F18: =(113330*1879.53)/1000 -> 213007.1349 | G18: =134289*2017.85/1000 -> 270975.0586 | H18: =169407*2771.55/1000 -> 469519.9709 | I18: =172630*3040.09/1000 -> 524810.7367 | J18: =(183332)*2957.52/1000 -> 542208.0566
B19: 12 | C19: Otros Ingresos / (Egresos) Financieros | D19: =15793+37010+19860-68090-8360-3735-8673 -> -16195 | E19: =6018+40346-68380-1087-3009-12314 -> -38426 | F19: =((11565-11402)*1879.53)/1000 -> 306.36339 | G19: =(15436+5924)*2017.85/1000 -> 43101.276 | H19: =(19016+626)*2771.55/1000 -> 54438.7851 | I19: =(13054+3321)*3040.09/1000 -> 49781.47375 | J19: =(14528-2536)*2957.52/1000 -> 35466.57984
B20: 13 | C20: Otros Ingresos / (Egresos) No Operacionales | D20: =20570+37110+1938+12147+18299-21683-11549-2975-18538 -> 35319 | E20: =134753+47171+5344+746+11419-12777-22824-39215 -> 124617 | F20: =0 -> 0 | G20: =0 -> 0 | H20: =0 -> 0 | I20: =0 -> 0
B21: 14 | C21: Utilidad / (Pérdida) en Venta de Activos | D21: =28366+317-4003 -> 24680 | E21: =39510+760-2890 -> 37380 | F21: 0 | G21: 0 | H21: 0 | I21: 0
B22: 15 | C22: Utilidad / (Pérdida) por Diferencia en Cambio | D22: =-5349 -> -5349 | E22: =30175 -> 30175 | F22: =(23517)*1879.53/1000 -> 44200.90701 | G22: =(-6043)*2017.85/1000 -> -12193.86755 | H22: =(-177529)*2771.55/1000 -> -492030.5 | I22: =(-23939)*3040.09/1000 -> -72776.71451 | J22: =(-20163)*2957.52/1000 -> -59632.47576
B23: 16 | C23: Utilidad / (Pérdida) en Método de Participación | D23: =7361-22430-6165 -> -21234 | E23: =6826-16614-3373 -> -13161 | F23: =0 -> 0 | G23: =0 -> 0 | H23: =0 -> 0
B24: 17 | C24: Utilidad Neta antes de Impuestos | D24: =D17-D18+SUM(D19:D23) -> 280330 | E24: =E17-E18+SUM(E19:E23) -> 437161 | F24: 554989.4979 | G24: 334182.192 | H24: -300652.2009 | I24: 237966.0848 | J24: 302084.0503
B25: 18 | C25: Provisión Impuesto a la Renta | D25: 78113 | E25: 85477 | F25: =46460*1879.53/1000 -> 87322.9638 | G25: =45134*2017.85/1000 -> 91073.6419 | H25: =(31028)*2771.55/1000 -> 85995.6534 | I25: =34090*3040.09/1000 -> 103636.6681 | J25: =(20109)*2957.52/1000 -> 59472.76968
B26: 19 | C26: Utilidad Neta del Ejercicio | D26: =D24-D25 -> 202217 | E26: =E24-E25 -> 351684 | F26: 467666.5341 | G26: 243108.5501 | H26: -386647.8543 | I26: 134329.4167 | J26: 242611.2806
C28: ESTADO DE SITUACIÓN FINANCIERA
C30: ACTIVO
B31: =B26+1 -> 20 | C31: Disponible y equivalentes | D31: =915349 -> 915349 | E31: =700876 -> 700876 | F31: =(735577+23538)*1926.83/1000 -> 1462685.555 | G31: =(639310+1987)*2392.46/1000 -> 1534277.421 | H31: =(479381+5397)*3149.47/1000 -> 1526793.768 | I31: =(375753+5371)*3000.71/1000 -> 1143642.598 | J31: =(508982+5465)*2984/1000 -> 1535109.848
B32: =B31+1 -> 21 | C32: Cuentas por cobrar - Clientes | D32: =252587 -> 252587 | E32: =270436 -> 270436 | F32: =((216160)*1926.83)/1000 -> 416503.5728 | G32: =(259180)*2392.46/1000 -> 620077.7828 | H32: =(187836)*3149.47/1000 -> 591583.8469 | I32: =(206229)*3000.71/1000 -> 618833.4226 | J32: =(190501)*2984/1000 -> 568454.984
B33: =B32+1 -> 22 | C33: Deterioro acumulado de Cartera | D33: =-21172 -> -21172 | E33: =-25283 -> -25283 | F33: =(-14109)*1926.83/1000 -> -27185.64447 | G33: =(-16328)*2392.46/1000 -> -39064.08688 | H33: =(-13314)*3149.47/1000 -> -41932.04358 | I33: =(-13256)*3000.71/1000 -> -39777.41176 | J33: =(-13180)*2984/1000 -> -39329.12
B34: 23 | C34: Inventario Neto | D34: =92309 -> 92309 | E34: =88565 -> 88565 | F34: =(53158)*1926.83/1000 -> 102426.4291 | G34: =(64844)*2392.46/1000 -> 155136.6762 | H34: =(68768)*3149.47/1000 -> 216582.753 | I34: =(82362)*3000.71/1000 -> 247144.477 | J34: =(97248)*2984/1000 -> 290188.032
B35: 24 | C35: Otros Activos Corrientes | D35: =76503+135381+5800+62700+((502647+21172)-252587) -> 551616 | E35: =115052+62701+220335+6239+((785186+25283)-270436) -> 944360 | F35: =((323513-(216160+32441))+26425+7448+125334+46745)*1926.83/1000 -> 541177.1811 | G35: =(413478-(259180+41090)+31267+1218+60453+1369+168994)*2392.46/1000 -> 900782.7221 | H35: =(352647-(187836+59713)+23073+45708+3323+130724)*3149.47/1000 -> 969803.6992 | I35: =(419172-(206229+92048)+19283+59725+160124)*3000.71/1000 -> 1080336.619 | J35: =(493972-(190501+140416)+17204+99757+201984)*2984/1000 -> 1438288
B36: =B35+1 -> 25 | C36: ACTIVO CORRIENTE | D36: =SUM(D31:D35) -> 1790689 | E36: =SUM(E31:E35) -> 1978954 | F36: 2495607.094 | G36: 3171210.515 | H36: 3262832.023 | I36: 3050179.705 | J36: 3792711.744
B37: 26 | C37: Propiedad Planta y Equipo - Neto | D37: =3578571 -> 3578571 | E37: =4111863 -> 4111863 | F37: =(3233358)*1926.83/1000 -> 6230131.195 | G37: =(4130265)*2392.46/1000 -> 9881493.802 | H37: =(4599346)*3149.47/1000 -> 14485502.25 | I37: =(4649929)*3000.71/1000 -> 13953088.45 | J37: =(4881016)*2984/1000 -> 14564951.74
B38: 27 | C38: Activo Diferido | D38: =203095 -> 203095 | E38: =236460 -> 236460 | F38: =(50893)*1926.83/1000 -> 98062.15919 | G38: =(39936)*2392.46/1000 -> 95545.28256 | H38: =(232225)*3149.47/1000 -> 731385.6708 | I38: =(5845)*3000.71/1000 -> 17539.14995 | J38: =(25969)*2984/1000 -> 77491.496
B39: 28 | C39: Intangibles y Valorizaciones | D39: =571901+259385 -> 831286 | E39: =688456+178173 -> 866629 | F39: =(363103)*1926.83/1000 -> 699637.7535 | G39: =(425369)*2392.46/1000 -> 1017678.318 | H39: =(413766)*3149.47/1000 -> 1303143.604 | I39: =(412918)*3000.71/1000 -> 1239047.172 | J39: =(426579)*2984/1000 -> 1272911.736
B40: 29 | C40: Inversiones Permanentes
B41: 30 | C41: Otros Activos Largo Plazo | D41: =636934+326157+90311+60605 -> 1114007 | E41: =390738+315710+38972+29912 -> 775332 | F41: =((32441+189176+14878)*1926.83)/1000 -> 455685.6608 | G41: =((41090+6167+237+216763)*2392.46)/1000 -> 632224.3022 | H41: =(59713+793+246486)*3149.47/1000 -> 966862.0942 | I41: =(92048+76+174033)*3000.71/1000 -> 798659.9715 | J41: =(140416+55+116345)*2984/1000 -> 766338.944
B42: 31 | C42: TOTAL ACTIVO | D42: =SUM(D36:D41) -> 7517648 | E42: =SUM(E36:E41) -> 7969238 | F42: 9979123.863 | G42: 14798152.22 | H42: 20749725.64 | I42: 19058514.45 | J42: 20474405.66
C44: PASIVO
B45: =B42+1 -> 32 | C45: Cuentas por Pagar a Proveedores | D45: =349946 -> 349946 | E45: =348110 -> 348110 | F45: =(332450)*1926.83/1000 -> 640574.6335 | G45: =(247425)*2392.46/1000 -> 591954.4155 | H45: =(340043)*3149.47/1000 -> 1070955.227 | I45: =(319858)*3000.71/1000 -> 959801.0992 | J45: =(168795)*2984/1000 -> 503684.28
B46: =B45+1 -> 33 | C46: Obligaciones Financieras - Corto Plazo | D46: =480483 -> 480483 | E46: =415348 -> 415348 | F46: =(38852+4815)*1926.83/1000 -> 84138.88561 | G46: =(32764)*2392.46/1000 -> 78386.55944 | H46: =(25056)*3149.47/1000 -> 78913.12032 | I46: =(29590)*3000.71/1000 -> 88791.0089 | J46: =(29458)*2984/1000 -> 87902.672
B47: 34 | C47: Porción Corriente de Deuda Financiera de LP | F47: =(270498)*1926.83/1000 -> 521203.6613 | G47: =(426295)*2392.46/1000 -> 1019893.736 | H47: =(387828)*3149.47/1000 -> 1221452.651 | I47: =(377149)*3000.71/1000 -> 1131714.776 | J47: =(542614)*2984/1000 -> 1619160.176
B48: 35 | C48: Dividendos por pagar
B49: 36 | C49: Intereses por pagar | D49: =5552 -> 5552 | E49: =5989 -> 5989
B50: 37 | C50: Otros Pasivos Corrientes | D50: =(350954-5552)+83401+156491+246374+633035+24226+83218 -> 1572147 | E50: =((338702-5989)+148431+170618+493495+630801+34697+105656) -> 1916411 | F50: =(93308+50784+32587+7553+134938+14984+33033+52392+564605+27432)*1926.83/1000 -> 1949212.057 | G50: =((528356-247425)+18552+176087+61425+14157+48699+455527+127496)*2392.46/1000 -> 2829978.73 | H50: =((481664-340043)+118192+52636+9449+13386+32876+432503+12691)*3149.47/1000 -> 2561634.022 | I50: =((493106-319858)+138797+53116+9072+18516+39581+521190+11085)*3000.71/1000 -> 2894499.87 | J50: =(7187+186657+11720+19093+38706+539225+9415+(526964-168795))*2984/1000 -> 3491793.248
B51: =B50+1 -> 38 | C51: PASIVO CORRIENTE | D51: =SUM(D45:D50) -> 2408128 | E51: =SUM(E45:E50) -> 2685858 | F51: 3195129.238 | G51: 4520213.441 | H51: 4932955.021 | I51: 5074806.753 | J51: 5702540.376
B52: 39 | C52: Obligaciones Financieras - Largo Plazo | D52: =2193394+500000 -> 2693394 | E52: =2322982+500000 -> 2822982 | F52: =(1951330)*1926.83/1000 -> 3759881.184 | G52: =(2712931)*2392.46/1000 -> 6490578.9 | H52: =(3060110)*3149.47/1000 -> 9637724.642 | I52: =(2259459+608037)*3000.71/1000 -> 8604523.922 | J52: =(3180041)*2984/1000 -> 9489242.344
B53: 40 | C53: Otros Pasivos de Largo Plazo | D53: =70734+24098+283710+184774+32954 -> 596270 | E53: =48219+12777+212369+39551+53780 -> 366696 | F53: =(2735+56065+276284+7940+11706)*1926.83/1000 -> 683504.4059 | G53: =(22610+72587+170177+85934+15760+8467)*2392.46/1000 -> 898452.4661 | H53: =(3599+109231+127720+239853+93519+15375)*3149.47/1000 -> 1855973.223 | I53: =(2734+120822+115569+20352+98088+14811)*3000.71/1000 -> 1117392.387 | J53: =(5084+144099+135640+25814+104786+15193)*2984/1000 -> 1284958.144
B54: 41 | C54: PASIVO A LARGO PLAZO | D54: =SUM(D52:D53) -> 3289664 | E54: =SUM(E52:E53) -> 3189678 | F54: =SUM(F52:F53) -> 4443385.59 | G54: 7389031.366 | H54: 11493697.86 | I54: 9721916.309 | J54: 10774200.49
B55: 42 | C55: TOTAL PASIVO | D55: =SUM(D51,D54) -> 5697792 | E55: =SUM(E51,E54) -> 5875536 | F55: 7638514.828 | G55: 11909244.81 | H55: 16426652.89 | I55: 14796723.06 | J55: 16476740.86
C57: PATRIMONIO
B58: =B55+1 -> 43 | C58: Capital Pagado | D58: =221091 -> 221091 | E58: 221091 | F58: =(83225+41398)*1926.83/1000 -> 240127.3351 | G58: =(82600+42023)*2392.46/1000 -> 298155.5426 | H58: =(82600+42023)*3149.47/1000 -> 392496.3998 | I58: =(82600+42023)*3000.71/1000 -> 373957.4823 | J58: =(82600+42023)*2984/1000 -> 371875.032
B59: =B58+1 -> 44 | C59: Prima en Colocación de Acciones | D59: =1267915 -> 1267915 | E59: =1367135 -> 1367135 | F59: =(236342+467498)*1926.83/1000 -> 1356180.027 | G59: =(234567+469273)*2392.46/1000 -> 1683909.046 | H59: =(234567+469273)*3149.47/1000 -> 2216722.965 | I59: =(234567+469273)*3000.71/1000 -> 2112019.726 | J59: =(234567+469273)*2984/1000 -> 2100258.56
B60: =B59+1 -> 45 | C60: Revalorizaciones e Interés Minoritario | D60: =18255+346 -> 18601 | E60: =13301-126694 -> -113393 | F60: =(6324+28857)*1926.83/1000 -> 67787.80623 | G60: =(7569+24550)*2392.46/1000 -> 76843.42274 | H60: =(18646+18394)*3149.47/1000 -> 116656.3688 | I60: =(19752+27365)*3000.71/1000 -> 141384.4531 | J60: =(-75950+58382)*2984/1000 -> -52422.912
B61: =B60+1 -> 46 | C61: Reservas y Utilidades Retenidas | D61: =312249-D26 -> 110032 | E61: =(152211+466658)-E26 -> 267185 | F61: =((351102)*1926.83/1000)-F26 -> 208847.3325 | G61: =((346923)*2392.46/1000)-G26 -> 586890.8504 | H61: =((507132)*3149.47/1000)-H26 -> 1983844.874 | I61: =((544681)*3000.71/1000)-I26 -> 1500100.307 | J61: =((528805)*2984/1000)-J26 -> 1335342.839
B62: =B61+1 -> 47 | C62: Utilidad Neta del Ejercicio | D62: =D26 -> 202217 | E62: 351684 | F62: 467666.5341 | G62: 243108.5501 | H62: -386647.8543 | I62: 134329.4167 | J62: 242611.2806
B63: =B62+1 -> 48 | C63: TOTAL PATRIMONIO | D63: =SUM(D58:D62) -> 1819856 | E63: =SUM(E58:E62) -> 2093702 | F63: 2340609.035 | G63: 2888907.412 | H63: 4323072.753 | I63: 4261791.385 | J63: 3997664.8
B65: =B63+1 -> 49 | C65: TOTAL PASIVO + PATRIMONIO | D65: =SUM(D55,D63) -> 7517648 | E65: =SUM(E55,E63) -> 7969238 | F65: 9979123.863 | G65: 14798152.22 | H65: 20749725.64 | I65: 19058514.45 | J65: 20474405.66
C67: Datos que van al Flujo de Caja
B68: =+B65+1 -> 50 | C68: Impuestos Pagados
B69: =+B68+1 -> 51 | C69: CAPEX | D69: 169942 | E69: 899526 | F69: =((264700)*1879.53)/1000 -> 497511.591 | G69: =(29193)*2017.85/1000 -> 58907.09505 | H69: =(156655)*2771.55/1000 -> 434177.1653 | I69: =(210772)*3040.09/1000 -> 640765.8495 | J69: =(215305)*2957.52/1000 -> 636768.8436
B70: =+B69+1 -> 52 | C70: Dividendos Pagados | D70: 0 | E70: 45064 | F70: =((36921)*1879.53)/1000 -> 69394.12713 | G70: =(38944)*2017.85/1000 -> 78583.1504 | H70: =(70838)*2771.55/1000 -> 196331.0589 | I70: =(31823)*3040.09/1000 -> 96744.78407 | J70: =(25671+130002)*2957.52/1000 -> 460406.011
BOG2018: BOG2018RdR35pQ

Sheet EIR
C2: =Data!C6 -> ESTADO INTEGRAL DE RESULTADOS
C3: (En millones de pesos colombianos) | D3: =Data!D4 -> 2011 | E3: =Data!E4 -> 2012 | F3: =Data!F4 -> 2013 | G3: =Data!G4 -> 2014 | H3: =Data!H4 -> 2015 | I3: =Data!I4 -> 2016 | J3: =Data!J4 -> 2017
B5: =Data!B8 -> 1 | C5: =Data!C8 -> Ventas Brutas | D5: =Data!D8 -> 6905458 | E5: =Data!E8 -> 7459647 | F5: =Data!F8 -> 8208163.126 | G5: =Data!G8 -> 8945845.387 | H5: =Data!H8 -> 11314969.28 | I5: =Data!I8 -> 11677262.34 | J5: =Data!J8 -> 12129200.62
B6: =Data!B9 -> 2 | C6: =Data!C9 -> (Devoluciones, Rebajas y Descuentos) | D6: =Data!D9 -> 0 | E6: =Data!E9 -> 0 | F6: =Data!F9 -> 0 | G6: =Data!G9 -> 0 | H6: =Data!H9 -> 0 | I6: =Data!I9 -> 0 | J6: =Data!J9 -> 0
B7: =Data!B10 -> 3 | C7: =Data!C10 -> Otros Ingresos Operacionales | D7: =Data!D10 -> 159325 | E7: =Data!E10 -> 189175 | F7: =Data!F10 -> 455725.88 | G7: =Data!G10 -> 542147.8666 | H7: =Data!H10 -> 772705.3685 | I7: =Data!I10 -> 903657.6322 | J7: =Data!J10 -> 1007168.648
B8: =Data!B11 -> 4 | C8: =Data!C11 -> Ventas Netas | D8: =Data!D11 -> 7064783 | E8: =Data!E11 -> 7648822 | F8: =Data!F11 -> 8663889.006 | G8: =Data!G11 -> 9487993.253 | H8: =Data!H11 -> 12087674.65 | I8: =Data!I11 -> 12580919.97 | J8: =Data!J11 -> 13136369.26
B9: =Data!B12 -> 5 | C9: =Data!C12 -> Costo de Ventas | D9: =Data!D12 -> 4870222 | E9: =Data!E12 -> 5394578 | F9: =Data!F12 -> 6039591.485 | G9: =Data!G12 -> 6961461.429 | H9: =Data!H12 -> 8655060.086 | I9: =Data!I12 -> 8747688.73 | J9: =Data!J12 -> 9291611.009
B10: =Data!B13 -> 6 | C10: =Data!C13 -> Utilidad Bruta | D10: =Data!D13 -> 2194561 | E10: =Data!E13 -> 2254244 | F10: =Data!F13 -> 2624297.522 | G10: =Data!G13 -> 2526531.824 | H10: =Data!H13 -> 3432614.563 | I10: =Data!I13 -> 3833231.24 | J10: =Data!J13 -> 3844758.255
B11: =Data!B14 -> 7 | C11: =Data!C14 -> Gastos Operacionales | D11: =Data!D14 -> 1356924 | E11: =Data!E14 -> 1463737 | F11: =Data!F14 -> 1582077.462 | G11: =Data!G14 -> 1548913.767 | H11: =Data!H14 -> 2186669.803 | I11: =Data!I14 -> 2228015.079 | J11: =Data!J14 -> 2049375.036
B12: =Data!B15 -> 8 | C12: =Data!C15 -> EBITDA | D12: =Data!D15 -> 837637 | E12: =Data!E15 -> 790507 | F12: =Data!F15 -> 1042220.06 | G12: =Data!G15 -> 977618.0572 | H12: =Data!H15 -> 1245944.759 | I12: =Data!I15 -> 1605216.161 | J12: =Data!J15 -> 1795383.219
B13: =Data!B16 -> 9 | C13: =Data!C16 -> Depreciación y Amortización | D13: =Data!D16 -> 390756 | E13: =Data!E16 -> 315953 | F13: =Data!F16 -> 318730.6974 | G13: =Data!G16 -> 403368.215 | H13: =Data!H16 -> 639485.2746 | I13: =Data!I16 -> 819444.0991 | J13: =Data!J16 -> 926925.2158
B14: =Data!B17 -> 10 | C14: =Data!C17 -> Utilidad Operacional | D14: =Data!D17 -> 446881 | E14: =Data!E17 -> 474554 | F14: =Data!F17 -> 723489.3624 | G14: =Data!G17 -> 574249.8422 | H14: =Data!H17 -> 606459.4848 | I14: =Data!I17 -> 785772.0623 | J14: =Data!J17 -> 868458.0029
B15: =Data!B18 -> 11 | C15: =Data!C18 -> Gasto de Intereses | D15: =Data!D18 -> 183772 | E15: =Data!E18 -> 177978 | F15: =Data!F18 -> 213007.1349 | G15: =Data!G18 -> 270975.0586 | H15: =Data!H18 -> 469519.9709 | I15: =Data!I18 -> 524810.7367 | J15: =Data!J18 -> 542208.0566
B16: =Data!B19 -> 12 | C16: =Data!C19 -> Otros Ingresos / (Egresos) Financieros | D16: =Data!D19 -> -16195 | E16: =Data!E19 -> -38426 | F16: =Data!F19 -> 306.36339 | G16: =Data!G19 -> 43101.276 | H16: =Data!H19 -> 54438.7851 | I16: =Data!I19 -> 49781.47375 | J16: =Data!J19 -> 35466.57984
B17: =Data!B20 -> 13 | C17: =Data!C20 -> Otros Ingresos / (Egresos) No Operacionales | D17: =Data!D20 -> 35319 | E17: =Data!E20 -> 124617 | F17: =Data!F20 -> 0 | G17: =Data!G20 -> 0 | H17: =Data!H20 -> 0 | I17: =Data!I20 -> 0 | J17: =Data!J20 -> 0
B18: =Data!B21 -> 14 | C18: =Data!C21 -> Utilidad / (Pérdida) en Venta de Activos | D18: =Data!D21 -> 24680 | E18: =Data!E21 -> 37380 | F18: =Data!F21 -> 0 | G18: =Data!G21 -> 0 | H18: =Data!H21 -> 0 | I18: =Data!I21 -> 0 | J18: =Data!J21 -> 0
B19: =Data!B22 -> 15 | C19: =Data!C22 -> Utilidad / (Pérdida) por Diferencia en Cambio | D19: =Data!D22 -> -5349 | E19: =Data!E22 -> 30175 | F19: =Data!F22 -> 44200.90701 | G19: =Data!G22 -> -12193.86755 | H19: =Data!H22 -> -492030.5 | I19: =Data!I22 -> -72776.71451 | J19: =Data!J22 -> -59632.47576
B20: =Data!B23 -> 16 | C20: =Data!C23 -> Utilidad / (Pérdida) en Método de Participación | D20: =Data!D23 -> -21234 | E20: =Data!E23 -> -13161 | F20: =Data!F23 -> 0 | G20: =Data!G23 -> 0 | H20: =Data!H23 -> 0 | I20: =Data!I23 -> 0 | J20: =Data!J23 -> 0
B21: =Data!B24 -> 17 | C21: =Data!C24 -> Utilidad Neta antes de Impuestos | D21: =Data!D24 -> 280330 | E21: =Data!E24 -> 437161 | F21: =Data!F24 -> 554989.4979 | G21: =Data!G24 -> 334182.192 | H21: =Data!H24 -> -300652.2009 | I21: =Data!I24 -> 237966.0848 | J21: =Data!J24 -> 302084.0503
B22: =Data!B25 -> 18 | C22: =Data!C25 -> Provisión Impuesto a la Renta | D22: =Data!D25 -> 78113 | E22: =Data!E25 -> 85477 | F22: =Data!F25 -> 87322.9638 | G22: =Data!G25 -> 91073.6419 | H22: =Data!H25 -> 85995.6534 | I22: =Data!I25 -> 103636.6681 | J22: =Data!J25 -> 59472.76968
B23: =Data!B26 -> 19 | C23: =Data!C26 -> Utilidad Neta del Ejercicio | D23: =Data!D26 -> 202217 | E23: =Data!E26 -> 351684 | F23: =Data!F26 -> 467666.5341 | G23: =Data!G26 -> 243108.5501 | H23: =Data!H26 -> -386647.8543 | I23: =Data!I26 -> 134329.4167 | J23: =Data!J26 -> 242611.2806
BOG2018: BOG2018RdR35pQ

Sheet EIR Comparativo
C2: ESTADO INTEGRAL DE RESULTADOS COMPARATIVO
C3: (En millones de pesos colombianos) | D3: =EIR!D3 -> 2011 | E3: =EIR!E3 -> 2012 | H3: =EIR!F3 -> 2013 | K3: =EIR!G3 -> 2014 | N3: =EIR!H3 -> 2015 | Q3: =EIR!I3 -> 2016 | T3: =EIR!J3 -> 2017
D4: AV | E4: AV | F4: AH$ | G4: AH% | H4: AV | I4: AH$ | J4: AH% | K4: AV | L4: AH$ | M4: AH% | N4: AV | O4: AH$ | P4: AH% | Q4: AV | R4: AH$ | S4: AH% | T4: AV | U4: AH$ | V4: AH%
B5: =EIR!B5 -> 1 | C5: =EIR!C5 -> Ventas Brutas | D5: =EIR!D5/EIR!D$8 -> 0.977447998 | E5: =EIR!E5/EIR!E$8 -> 0.9752674333 | F5: =EIR!E5-EIR!D5 -> 554189 | G5: =IF(ISERR(F5/EIR!D5),"",(F5/EIR!D5)) -> 0.08025376449 | H5: =EIR!F5/EIR!F$8 -> 0.9473993862 | I5: =EIR!F5-EIR!E5 -> 748516.1261 | J5: =IF(ISERR(I5/EIR!E5),"",(I5/EIR!E5)) -> 0.1003420304 | K5: =EIR!G5/EIR!G$8 -> 0.9428595856 | L5: =EIR!G5-EIR!F5 -> 737682.2607 | M5: =IF(ISERR(L5/EIR!F5),"",(L5/EIR!F5)) -> 0.08987178365 | N5: =EIR!H5/EIR!H$8 -> 0.9360749366 | O5: =EIR!H5-EIR!G5 -> 2369123.893 | P5: =IF(ISERR(O5/EIR!G5),"",(O5/EIR!G5)) -> 0.2648295148 | Q5: =EIR!I5/EIR!I$8 -> 0.9281723726 | R5: =EIR!I5-EIR!H5 -> 362293.0581 | S5: =IF(ISERR(R5/EIR!H5),"",(R5/EIR!H5)) -> 0.03201891663 | T5: =EIR!J5/EIR!J$8 -> 0.9233297551 | U5: =EIR!J5-EIR!I5 -> 451938.2771 | V5: =IF(ISERR(U5/EIR!I5),"",(U5/EIR!I5)) -> 0.03870241706
B6: =EIR!B6 -> 2 | C6: =EIR!C6 -> (Devoluciones, Rebajas y Descuentos) | D6: =EIR!D6/EIR!D$8 -> 0 | E6: =EIR!E6/EIR!E$8 -> 0 | F6: =EIR!E6-EIR!D6 -> 0 | G6: =IF(ISERR(F6/EIR!D6),"",(F6/EIR!D6)) ->  | H6: =EIR!F6/EIR!F$8 -> 0 | I6: =EIR!F6-EIR!E6 -> 0 | J6: =IF(ISERR(I6/EIR!E6),"",(I6/EIR!E6)) ->  | K6: =EIR!G6/EIR!G$8 -> 0 | L6: =EIR!G6-EIR!F6 -> 0 | M6: =IF(ISERR(L6/EIR!F6),"",(L6/EIR!F6)) ->  | N6: =EIR!H6/EIR!H$8 -> 0 | O6: =EIR!H6-EIR!G6 -> 0 | P6: =IF(ISERR(O6/EIR!G6),"",(O6/EIR!G6)) ->  | Q6: =EIR!I6/EIR!I$8 -> 0 | R6: =EIR!I6-EIR!H6 -> 0 | S6: =IF(ISERR(R6/EIR!H6),"",(R6/EIR!H6)) ->  | T6: =EIR!J6/EIR!J$8 -> 0 | U6: =EIR!J6-EIR!I6 -> 0 | V6: =IF(ISERR(U6/EIR!I6),"",(U6/EIR!I6)) -> 
B7: =EIR!B7 -> 3 | C7: =EIR!C7 -> Otros Ingresos Operacionales | D7: =EIR!D7/EIR!D$8 -> 0.02255200195 | E7: =EIR!E7/EIR!E$8 -> 0.02473256666 | F7: =EIR!E7-EIR!D7 -> 29850 | G7: =IF(ISERR(F7/EIR!D7),"",(F7/EIR!D7)) -> 0.187352895 | H7: =EIR!F7/EIR!F$8 -> 0.05260061385 | I7: =EIR!F7-EIR!E7 -> 266550.88 | J7: =IF(ISERR(I7/EIR!E7),"",(I7/EIR!E7)) -> 1.409017471 | K7: =EIR!G7/EIR!G$8 -> 0.05714041443 | L7: =EIR!G7-EIR!F7 -> 86421.98656 | M7: =IF(ISERR(L7/EIR!F7),"",(L7/EIR!F7)) -> 0.1896358981 | N7: =EIR!H7/EIR!H$8 -> 0.06392506342 | O7: =EIR!H7-EIR!G7 -> 230557.5019 | P7: =IF(ISERR(O7/EIR!G7),"",(O7/EIR!G7)) -> 0.4252668249 | Q7: =EIR!I7/EIR!I$8 -> 0.07182762742 | R7: =EIR!I7-EIR!H7 -> 130952.2638 | S7: =IF(ISERR(R7/EIR!H7),"",(R7/EIR!H7)) -> 0.1694724395 | T7: =EIR!J7/EIR!J$8 -> 0.07667024489 | U7: =EIR!J7-EIR!I7 -> 103511.0162 | V7: =IF(ISERR(U7/EIR!I7),"",(U7/EIR!I7)) -> 0.1145467182
B8: =EIR!B8 -> 4 | C8: =EIR!C8 -> Ventas Netas | D8: =EIR!D8/EIR!D$8 -> 1 | E8: =EIR!E8/EIR!E$8 -> 1 | F8: =EIR!E8-EIR!D8 -> 584039 | G8: =IF(ISERR(F8/EIR!D8),"",(F8/EIR!D8)) -> 0.08266906429 | H8: =EIR!F8/EIR!F$8 -> 1 | I8: =EIR!F8-EIR!E8 -> 1015067.006 | J8: =IF(ISERR(I8/EIR!E8),"",(I8/EIR!E8)) -> 0.132708933 | K8: =EIR!G8/EIR!G$8 -> 1 | L8: =EIR!G8-EIR!F8 -> 824104.2472 | M8: =IF(ISERR(L8/EIR!F8),"",(L8/EIR!F8)) -> 0.09511943732 | N8: =EIR!H8/EIR!H$8 -> 1 | O8: =EIR!H8-EIR!G8 -> 2599681.395 | P8: =IF(ISERR(O8/EIR!G8),"",(O8/EIR!G8)) -> 0.2739969692 | Q8: =EIR!I8/EIR!I$8 -> 1 | R8: =EIR!I8-EIR!H8 -> 493245.3219 | S8: =IF(ISERR(R8/EIR!H8),"",(R8/EIR!H8)) -> 0.0408056418 | T8: =EIR!J8/EIR!J$8 -> 1 | U8: =EIR!J8-EIR!I8 -> 555449.2933 | V8: =IF(ISERR(U8/EIR!I8),"",(U8/EIR!I8)) -> 0.04415013326
B9: =EIR!B9 -> 5 | C9: =EIR!C9 -> Costo de Ventas | D9: =EIR!D9/EIR!D$8 -> 0.6893661136 | E9: =EIR!E9/EIR!E$8 -> 0.705282199 | F9: =EIR!E9-EIR!D9 -> 524356 | G9: =IF(ISERR(F9/EIR!D9),"",(F9/EIR!D9)) -> 0.1076657286 | H9: =EIR!F9/EIR!F$8 -> 0.6970993604 | I9: =EIR!F9-EIR!E9 -> 645013.4846 | J9: =IF(ISERR(I9/EIR!E9),"",(I9/EIR!E9)) -> 0.1195669957 | K9: =EIR!G9/EIR!G$8 -> 0.7337127297 | L9: =EIR!G9-EIR!F9 -> 921869.9444 | M9: =IF(ISERR(L9/EIR!F9),"",(L9/EIR!F9)) -> 0.1526377979 | N9: =EIR!H9/EIR!H$8 -> 0.7160235808 | O9: =EIR!H9-EIR!G9 -> 1693598.657 | P9: =IF(ISERR(O9/EIR!G9),"",(O9/EIR!G9)) -> 0.2432820571 | Q9: =EIR!I9/EIR!I$8 -> 0.6953139159 | R9: =EIR!I9-EIR!H9 -> 92628.64431 | S9: =IF(ISERR(R9/EIR!H9),"",(R9/EIR!H9)) -> 0.01070225318 | T9: =EIR!J9/EIR!J$8 -> 0.7073195662 | U9: =EIR!J9-EIR!I9 -> 543922.2788 | V9: =IF(ISERR(U9/EIR!I9),"",(U9/EIR!I9)) -> 0.06217897043
B10: =EIR!B10 -> 6 | C10: =EIR!C10 -> Utilidad Bruta | D10: =EIR!D10/EIR!D$8 -> 0.3106338864 | E10: =EIR!E10/EIR!E$8 -> 0.294717801 | F10: =EIR!E10-EIR!D10 -> 59683 | G10: =IF(ISERR(F10/EIR!D10),"",(F10/EIR!D10)) -> 0.02719587198 | H10: =EIR!F10/EIR!F$8 -> 0.3029006396 | I10: =EIR!F10-EIR!E10 -> 370053.5216 | J10: =IF(ISERR(I10/EIR!E10),"",(I10/EIR!E10)) -> 0.1641585922 | K10: =EIR!G10/EIR!G$8 -> 0.2662872703 | L10: =EIR!G10-EIR!F10 -> -97765.69721 | M10: =IF(ISERR(L10/EIR!F10),"",(L10/EIR!F10)) -> -0.03725404471 | N10: =EIR!H10/EIR!H$8 -> 0.2839764192 | O10: =EIR!H10-EIR!G10 -> 906082.7386 | P10: =IF(ISERR(O10/EIR!G10),"",(O10/EIR!G10)) -> 0.3586270831 | Q10: =EIR!I10/EIR!I$8 -> 0.3046860841 | R10: =EIR!I10-EIR!H10 -> 400616.6776 | S10: =IF(ISERR(R10/EIR!H10),"",(R10/EIR!H10)) -> 0.1167089023 | T10: =EIR!J10/EIR!J$8 -> 0.2926804338 | U10: =EIR!J10-EIR!I10 -> 11527.01442 | V10: =IF(ISERR(U10/EIR!I10),"",(U10/EIR!I10)) -> 0.003007127329
B11: =EIR!B11 -> 7 | C11: =EIR!C11 -> Gastos Operacionales | D11: =EIR!D11/EIR!D$8 -> 0.1920687444 | E11: =EIR!E11/EIR!E$8 -> 0.191367638 | F11: =EIR!E11-EIR!D11 -> 106813 | G11: =IF(ISERR(F11/EIR!D11),"",(F11/EIR!D11)) -> 0.07871700994 | H11: =EIR!F11/EIR!F$8 -> 0.1826059245 | I11: =EIR!F11-EIR!E11 -> 118340.4617 | J11: =IF(ISERR(I11/EIR!E11),"",(I11/EIR!E11)) -> 0.08084817268 | K11: =EIR!G11/EIR!G$8 -> 0.1632498807 | L11: =EIR!G11-EIR!F11 -> -33163.69463 | M11: =IF(ISERR(L11/EIR!F11),"",(L11/EIR!F11)) -> -0.02096211812 | N11: =EIR!H11/EIR!H$8 -> 0.1809007826 | O11: =EIR!H11-EIR!G11 -> 637756.0364 | P11: =IF(ISERR(O11/EIR!G11),"",(O11/EIR!G11)) -> 0.4117440557 | Q11: =EIR!I11/EIR!I$8 -> 0.1770947661 | R11: =EIR!I11-EIR!H11 -> 41345.27552 | S11: =IF(ISERR(R11/EIR!H11),"",(R11/EIR!H11)) -> 0.01890787327 | T11: =EIR!J11/EIR!J$8 -> 0.1560077214 | U11: =EIR!J11-EIR!I11 -> -178640.0428 | V11: =IF(ISERR(U11/EIR!I11),"",(U11/EIR!I11)) -> -0.08017900977
B12: =EIR!B12 -> 8 | C12: =EIR!C12 -> EBITDA | D12: =EIR!D12/EIR!D$8 -> 0.1185651421 | E12: =EIR!E12/EIR!E$8 -> 0.1033501629 | F12: =EIR!E12-EIR!D12 -> -47130 | G12: =IF(ISERR(F12/EIR!D12),"",(F12/EIR!D12)) -> -0.05626542285 | H12: =EIR!F12/EIR!F$8 -> 0.1202947151 | I12: =EIR!F12-EIR!E12 -> 251713.0598 | J12: =IF(ISERR(I12/EIR!E12),"",(I12/EIR!E12)) -> 0.3184197734 | K12: =EIR!G12/EIR!G$8 -> 0.1030373896 | L12: =EIR!G12-EIR!F12 -> -64602.00258 | M12: =IF(ISERR(L12/EIR!F12),"",(L12/EIR!F12)) -> -0.06198499249 | N12: =EIR!H12/EIR!H$8 -> 0.1030756366 | O12: =EIR!H12-EIR!G12 -> 268326.7022 | P12: =IF(ISERR(O12/EIR!G12),"",(O12/EIR!G12)) -> 0.2744698711 | Q12: =EIR!I12/EIR!I$8 -> 0.1275913181 | R12: =EIR!I12-EIR!H12 -> 359271.402 | S12: =IF(ISERR(R12/EIR!H12),"",(R12/EIR!H12)) -> 0.2883525929 | T12: =EIR!J12/EIR!J$8 -> 0.1366727124 | U12: =EIR!J12-EIR!I12 -> 190167.0572 | V12: =IF(ISERR(U12/EIR!I12),"",(U12/EIR!I12)) -> 0.1184681925
B13: =EIR!B13 -> 9 | C13: =EIR!C13 -> Depreciación y Amortización | D13: =EIR!D13/EIR!D$8 -> 0.05531040373 | E13: =EIR!E13/EIR!E$8 -> 0.04130740655 | F13: =EIR!E13-EIR!D13 -> -74803 | G13: =IF(ISERR(F13/EIR!D13),"",(F13/EIR!D13)) -> -0.1914314815 | H13: =EIR!F13/EIR!F$8 -> 0.03678840959 | I13: =EIR!F13-EIR!E13 -> 2777.6974 | J13: =IF(ISERR(I13/EIR!E13),"",(I13/EIR!E13)) -> 0.00879148924 | K13: =EIR!G13/EIR!G$8 -> 0.04251354362 | L13: =EIR!G13-EIR!F13 -> 84637.5176 | M13: =IF(ISERR(L13/EIR!F13),"",(L13/EIR!F13)) -> 0.2655455477 | N13: =EIR!H13/EIR!H$8 -> 0.05290391189 | O13: =EIR!H13-EIR!G13 -> 236117.0596 | P13: =IF(ISERR(O13/EIR!G13),"",(O13/EIR!G13)) -> 0.5853635731 | Q13: =EIR!I13/EIR!I$8 -> 0.06513387742 | R13: =EIR!I13-EIR!H13 -> 179958.8245 | S13: =IF(ISERR(R13/EIR!H13),"",(R13/EIR!H13)) -> 0.2814119913 | T13: =EIR!J13/EIR!J$8 -> 0.0705617509 | U13: =EIR!J13-EIR!I13 -> 107481.1166 | V13: =IF(ISERR(U13/EIR!I13),"",(U13/EIR!I13)) -> 0.1311634518
B14: =EIR!B14 -> 10 | C14: =EIR!C14 -> Utilidad Operacional | D14: =EIR!D14/EIR!D$8 -> 0.06325473833 | E14: =EIR!E14/EIR!E$8 -> 0.06204275639 | F14: =EIR!E14-EIR!D14 -> 27673 | G14: =IF(ISERR(F14/EIR!D14),"",(F14/EIR!D14)) -> 0.06192476297 | H14: =EIR!F14/EIR!F$8 -> 0.08350630553 | I14: =EIR!F14-EIR!E14 -> 248935.3624 | J14: =IF(ISERR(I14/EIR!E14),"",(I14/EIR!E14)) -> 0.524566988 | K14: =EIR!G14/EIR!G$8 -> 0.06052384597 | L14: =EIR!G14-EIR!F14 -> -149239.5202 | M14: =IF(ISERR(L14/EIR!F14),"",(L14/EIR!F14)) -> -0.2062774215 | N14: =EIR!H14/EIR!H$8 -> 0.05017172471 | O14: =EIR!H14-EIR!G14 -> 32209.64255 | P14: =IF(ISERR(O14/EIR!G14),"",(O14/EIR!G14)) -> 0.05608994584 | Q14: =EIR!I14/EIR!I$8 -> 0.06245744064 | R14: =EIR!I14-EIR!H14 -> 179312.5775 | S14: =IF(ISERR(R14/EIR!H14),"",(R14/EIR!H14)) -> 0.2956711569 | T14: =EIR!J14/EIR!J$8 -> 0.06611096152 | U14: =EIR!J14-EIR!I14 -> 82685.94058 | V14: =IF(ISERR(U14/EIR!I14),"",(U14/EIR!I14)) -> 0.1052289138
B15: =EIR!B15 -> 11 | C15: =EIR!C15 -> Gasto de Intereses | D15: =EIR!D15/EIR!D$8 -> 0.02601240548 | E15: =EIR!E15/EIR!E$8 -> 0.02326868111 | F15: =EIR!E15-EIR!D15 -> -5794 | G15: =IF(ISERR(F15/EIR!D15),"",(F15/EIR!D15)) -> -0.03152819798 | H15: =EIR!F15/EIR!F$8 -> 0.02458562601 | I15: =EIR!F15-EIR!E15 -> 35029.1349 | J15: =IF(ISERR(I15/EIR!E15),"",(I15/EIR!E15)) -> 0.1968172184 | K15: =EIR!G15/EIR!G$8 -> 0.02855978619 | L15: =EIR!G15-EIR!F15 -> 57967.92375 | M15: =IF(ISERR(L15/EIR!F15),"",(L15/EIR!F15)) -> 0.2721407608 | N15: =EIR!H15/EIR!H$8 -> 0.03884286966 | O15: =EIR!H15-EIR!G15 -> 198544.9122 | P15: =IF(ISERR(O15/EIR!G15),"",(O15/EIR!G15)) -> 0.7327054866 | Q15: =EIR!I15/EIR!I$8 -> 0.04171481401 | R15: =EIR!I15-EIR!H15 -> 55290.76585 | S15: =IF(ISERR(R15/EIR!H15),"",(R15/EIR!H15)) -> 0.1177602004 | T15: =EIR!J15/EIR!J$8 -> 0.04127533611 | U15: =EIR!J15-EIR!I15 -> 17397.31994 | V15: =IF(ISERR(U15/EIR!I15),"",(U15/EIR!I15)) -> 0.03314970279
B16: =EIR!B16 -> 12 | C16: =EIR!C16 -> Otros Ingresos / (Egresos) Financieros | D16: =EIR!D16/EIR!D$8 -> -0.002292356326 | E16: =EIR!E16/EIR!E$8 -> -0.005023780132 | F16: =EIR!E16-EIR!D16 -> -22231 | G16: =IF(ISERR(F16/EIR!D16),"",(F16/EIR!D16)) -> 1.372707626 | H16: =EIR!F16/EIR!F$8 -> 3.536095508e-05 | I16: =EIR!F16-EIR!E16 -> 38732.36339 | J16: =IF(ISERR(I16/EIR!E16),"",(I16/EIR!E16)) -> -1.007972815 | K16: =EIR!G16/EIR!G$8 -> 0.004542717817 | L16: =EIR!G16-EIR!F16 -> 42794.91261 | M16: =IF(ISERR(L16/EIR!F16),"",(L16/EIR!F16)) -> 139.6867707 | N16: =EIR!H16/EIR!H$8 -> 0.004503660686 | O16: =EIR!H16-EIR!G16 -> 11337.5091 | P16: =IF(ISERR(O16/EIR!G16),"",(O16/EIR!G16)) -> 0.2630434677 | Q16: =EIR!I16/EIR!I$8 -> 0.003956902505 | R16: =EIR!I16-EIR!H16 -> -4657.31135 | S16: =IF(ISERR(R16/EIR!H16),"",(R16/EIR!H16)) -> -0.08555134619 | T16: =EIR!J16/EIR!J$8 -> 0.002699876894 | U16: =EIR!J16-EIR!I16 -> -14314.89391 | V16: =IF(ISERR(U16/EIR!I16),"",(U16/EIR!I16)) -> -0.287554643
B17: =EIR!B17 -> 13 | C17: =EIR!C17 -> Otros Ingresos / (Egresos) No Operacionales | D17: =EIR!D17/EIR!D$8 -> 0.004999304296 | E17: =EIR!E17/EIR!E$8 -> 0.01629231272 | F17: =EIR!E17-EIR!D17 -> 89298 | G17: =IF(ISERR(F17/EIR!D17),"",(F17/EIR!D17)) -> 2.528327529 | H17: =EIR!F17/EIR!F$8 -> 0 | I17: =EIR!F17-EIR!E17 -> -124617 | J17: =IF(ISERR(I17/EIR!E17),"",(I17/EIR!E17)) -> -1 | K17: =EIR!G17/EIR!G$8 -> 0 | L17: =EIR!G17-EIR!F17 -> 0 | M17: =IF(ISERR(L17/EIR!F17),"",(L17/EIR!F17)) ->  | N17: =EIR!H17/EIR!H$8 -> 0 | O17: =EIR!H17-EIR!G17 -> 0 | P17: =IF(ISERR(O17/EIR!G17),"",(O17/EIR!G17)) ->  | Q17: =EIR!I17/EIR!I$8 -> 0 | R17: =EIR!I17-EIR!H17 -> 0 | S17: =IF(ISERR(R17/EIR!H17),"",(R17/EIR!H17)) ->  | T17: =EIR!J17/EIR!J$8 -> 0 | U17: =EIR!J17-EIR!I17 -> 0 | V17: =IF(ISERR(U17/EIR!I17),"",(U17/EIR!I17)) -> 
B18: =EIR!B18 -> 14 | C18: =EIR!C18 -> Utilidad / (Pérdida) en Venta de Activos | D18: =EIR!D18/EIR!D$8 -> 0.003493384015 | E18: =EIR!E18/EIR!E$8 -> 0.004887027048 | F18: =EIR!E18-EIR!D18 -> 12700 | G18: =IF(ISERR(F18/EIR!D18),"",(F18/EIR!D18)) -> 0.5145867099 | H18: =EIR!F18/EIR!F$8 -> 0 | I18: =EIR!F18-EIR!E18 -> -37380 | J18: =IF(ISERR(I18/EIR!E18),"",(I18/EIR!E18)) -> -1 | K18: =EIR!G18/EIR!G$8 -> 0 | L18: =EIR!G18-EIR!F18 -> 0 | M18: =IF(ISERR(L18/EIR!F18),"",(L18/EIR!F18)) ->  | N18: =EIR!H18/EIR!H$8 -> 0 | O18: =EIR!H18-EIR!G18 -> 0 | P18: =IF(ISERR(O18/EIR!G18),"",(O18/EIR!G18)) ->  | Q18: =EIR!I18/EIR!I$8 -> 0 | R18: =EIR!I18-EIR!H18 -> 0 | S18: =IF(ISERR(R18/EIR!H18),"",(R18/EIR!H18)) ->  | T18: =EIR!J18/EIR!J$8 -> 0 | U18: =EIR!J18-EIR!I18 -> 0 | V18: =IF(ISERR(U18/EIR!I18),"",(U18/EIR!I18)) -> 
B19: =EIR!B19 -> 15 | C19: =EIR!C19 -> Utilidad / (Pérdida) por Diferencia en Cambio | D19: =EIR!D19/EIR!D$8 -> -0.0007571357818 | E19: =EIR!E19/EIR!E$8 -> 0.003945051931 | F19: =EIR!E19-EIR!D19 -> 35524 | G19: =IF(ISERR(F19/EIR!D19),"",(F19/EIR!D19)) -> -6.641241354 | H19: =EIR!F19/EIR!F$8 -> 0.005101739759 | I19: =EIR!F19-EIR!E19 -> 14025.90701 | J19: =IF(ISERR(I19/EIR!E19),"",(I19/EIR!E19)) -> 0.4648187907 | K19: =EIR!G19/EIR!G$8 -> -0.001285189315 | L19: =EIR!G19-EIR!F19 -> -56394.77456 | M19: =IF(ISERR(L19/EIR!F19),"",(L19/EIR!F19)) -> -1.275873695 | N19: =EIR!H19/EIR!H$8 -> -0.04070514092 | O19: =EIR!H19-EIR!G19 -> -479836.6324 | P19: =IF(ISERR(O19/EIR!G19),"",(O19/EIR!G19)) -> 39.3506515 | Q19: =EIR!I19/EIR!I$8 -> -0.005784689409 | R19: =EIR!I19-EIR!H19 -> 419253.7854 | S19: =IF(ISERR(R19/EIR!H19),"",(R19/EIR!H19)) -> -0.8520890178 | T19: =EIR!J19/EIR!J$8 -> -0.00453949448 | U19: =EIR!J19-EIR!I19 -> 13144.23875 | V19: =IF(ISERR(U19/EIR!I19),"",(U19/EIR!I19)) -> -0.1806104994
B20: =EIR!B20 -> 16 | C20: =EIR!C20 -> Utilidad / (Pérdida) en Método de Participación | D20: =EIR!D20/EIR!D$8 -> -0.003005612487 | E20: =EIR!E20/EIR!E$8 -> -0.001720657116 | F20: =EIR!E20-EIR!D20 -> 8073 | G20: =IF(ISERR(F20/EIR!D20),"",(F20/EIR!D20)) -> -0.3801921447 | H20: =EIR!F20/EIR!F$8 -> 0 | I20: =EIR!F20-EIR!E20 -> 13161 | J20: =IF(ISERR(I20/EIR!E20),"",(I20/EIR!E20)) -> -1 | K20: =EIR!G20/EIR!G$8 -> 0 | L20: =EIR!G20-EIR!F20 -> 0 | M20: =IF(ISERR(L20/EIR!F20),"",(L20/EIR!F20)) ->  | N20: =EIR!H20/EIR!H$8 -> 0 | O20: =EIR!H20-EIR!G20 -> 0 | P20: =IF(ISERR(O20/EIR!G20),"",(O20/EIR!G20)) ->  | Q20: =EIR!I20/EIR!I$8 -> 0 | R20: =EIR!I20-EIR!H20 -> 0 | S20: =IF(ISERR(R20/EIR!H20),"",(R20/EIR!H20)) ->  | T20: =EIR!J20/EIR!J$8 -> 0 | U20: =EIR!J20-EIR!I20 -> 0 | V20: =IF(ISERR(U20/EIR!I20),"",(U20/EIR!I20)) -> 
B21: =EIR!B21 -> 17 | C21: =EIR!C21 -> Utilidad Neta antes de Impuestos | D21: =EIR!D21/EIR!D$8 -> 0.03967991657 | E21: =EIR!E21/EIR!E$8 -> 0.05715402973 | F21: =EIR!E21-EIR!D21 -> 156831 | G21: =IF(ISERR(F21/EIR!D21),"",(F21/EIR!D21)) -> 0.5594513609 | H21: =EIR!F21/EIR!F$8 -> 0.06405778023 | I21: =EIR!F21-EIR!E21 -> 117828.4979 | J21: =IF(ISERR(I21/EIR!E21),"",(I21/EIR!E21)) -> 0.2695311291 | K21: =EIR!G21/EIR!G$8 -> 0.03522158829 | L21: =EIR!G21-EIR!F21 -> -220807.3059 | M21: =IF(ISERR(L21/EIR!F21),"",(L21/EIR!F21)) -> -0.3978585301 | N21: =EIR!H21/EIR!H$8 -> -0.02487262519 | O21: =EIR!H21-EIR!G21 -> -634834.3929 | P21: =IF(ISERR(O21/EIR!G21),"",(O21/EIR!G21)) -> -1.899665536 | Q21: =EIR!I21/EIR!I$8 -> 0.01891483973 | R21: =EIR!I21-EIR!H21 -> 538618.2857 | S21: =IF(ISERR(R21/EIR!H21),"",(R21/EIR!H21)) -> -1.79149956 | T21: =EIR!J21/EIR!J$8 -> 0.02299600782 | U21: =EIR!J21-EIR!I21 -> 64117.96548 | V21: =IF(ISERR(U21/EIR!I21),"",(U21/EIR!I21)) -> 0.2694416119
B22: =EIR!B22 -> 18 | C22: =EIR!C22 -> Provisión Impuesto a la Renta | D22: =EIR!D22/EIR!D$8 -> 0.01105667364 | E22: =EIR!E22/EIR!E$8 -> 0.01117518488 | F22: =EIR!E22-EIR!D22 -> 7364 | G22: =IF(ISERR(F22/EIR!D22),"",(F22/EIR!D22)) -> 0.09427368044 | H22: =EIR!F22/EIR!F$8 -> 0.01007895689 | I22: =EIR!F22-EIR!E22 -> 1845.9638 | J22: =IF(ISERR(I22/EIR!E22),"",(I22/EIR!E22)) -> 0.02159602934 | K22: =EIR!G22/EIR!G$8 -> 0.009598830803 | L22: =EIR!G22-EIR!F22 -> 3750.6781 | M22: =IF(ISERR(L22/EIR!F22),"",(L22/EIR!F22)) -> 0.04295179569 | N22: =EIR!H22/EIR!H$8 -> 0.007114325617 | O22: =EIR!H22-EIR!G22 -> -5077.9885 | P22: =IF(ISERR(O22/EIR!G22),"",(O22/EIR!G22)) -> -0.05575695002 | Q22: =EIR!I22/EIR!I$8 -> 0.008237606498 | R22: =EIR!I22-EIR!H22 -> 17641.0147 | S22: =IF(ISERR(R22/EIR!H22),"",(R22/EIR!H22)) -> 0.205138446 | T22: =EIR!J22/EIR!J$8 -> 0.004527336929 | U22: =EIR!J22-EIR!I22 -> -44163.89842 | V22: =IF(ISERR(U22/EIR!I22),"",(U22/EIR!I22)) -> -0.4261416276
B23: =EIR!B23 -> 19 | C23: =EIR!C23 -> Utilidad Neta del Ejercicio | D23: =EIR!D23/EIR!D$8 -> 0.02862324292 | E23: =EIR!E23/EIR!E$8 -> 0.04597884485 | F23: =EIR!E23-EIR!D23 -> 149467 | G23: =IF(ISERR(F23/EIR!D23),"",(F23/EIR!D23)) -> 0.7391416152 | H23: =EIR!F23/EIR!F$8 -> 0.05397882334 | I23: =EIR!F23-EIR!E23 -> 115982.5341 | J23: =IF(ISERR(I23/EIR!E23),"",(I23/EIR!E23)) -> 0.3297918988 | K23: =EIR!G23/EIR!G$8 -> 0.02562275749 | L23: =EIR!G23-EIR!F23 -> -224557.984 | M23: =IF(ISERR(L23/EIR!F23),"",(L23/EIR!F23)) -> -0.4801668873 | N23: =EIR!H23/EIR!H$8 -> -0.0319869508 | O23: =EIR!H23-EIR!G23 -> -629756.4044 | P23: =IF(ISERR(O23/EIR!G23),"",(O23/EIR!G23)) -> -2.590432974 | Q23: =EIR!I23/EIR!I$8 -> 0.01067723323 | R23: =EIR!I23-EIR!H23 -> 520977.271 | S23: =IF(ISERR(R23/EIR!H23),"",(R23/EIR!H23)) -> -1.347420567 | T23: =EIR!J23/EIR!J$8 -> 0.01846867089 | U23: =EIR!J23-EIR!I23 -> 108281.8639 | V23: =IF(ISERR(U23/EIR!I23),"",(U23/EIR!I23)) -> 0.806091968
BOG2018: BOG2018RdR35pQ

Sheet ESF
C2: ESTADO DE SITUACIÓN FINANCIERA
C3: (En millones de pesos colombianos) | D3: =Data!D4 -> 2011 | E3: =Data!E4 -> 2012 | F3: =Data!F4 -> 2013 | G3: =Data!G4 -> 2014 | H3: =Data!H4 -> 2015 | I3: =Data!I4 -> 2016 | J3: =Data!J4 -> 2017
C5: =Data!C30 -> ACTIVO
B6: =Data!B31 -> 20 | C6: =Data!C31 -> Disponible y equivalentes | D6: =Data!D31 -> 915349 | E6: =Data!E31 -> 700876 | F6: =Data!F31 -> 1462685.555 | G6: =Data!G31 -> 1534277.421 | H6: =Data!H31 -> 1526793.768 | I6: =Data!I31 -> 1143642.598 | J6: =Data!J31 -> 1535109.848
B7: =Data!B32 -> 21 | C7: =Data!C32 -> Cuentas por cobrar - Clientes | D7: =Data!D32 -> 252587 | E7: =Data!E32 -> 270436 | F7: =Data!F32 -> 416503.5728 | G7: =Data!G32 -> 620077.7828 | H7: =Data!H32 -> 591583.8469 | I7: =Data!I32 -> 618833.4226 | J7: =Data!J32 -> 568454.984
B8: =Data!B33 -> 22 | C8: =Data!C33 -> Deterioro acumulado de Cartera | D8: =Data!D33 -> -21172 | E8: =Data!E33 -> -25283 | F8: =Data!F33 -> -27185.64447 | G8: =Data!G33 -> -39064.08688 | H8: =Data!H33 -> -41932.04358 | I8: =Data!I33 -> -39777.41176 | J8: =Data!J33 -> -39329.12
B9: =Data!B34 -> 23 | C9: =Data!C34 -> Inventario Neto | D9: =Data!D34 -> 92309 | E9: =Data!E34 -> 88565 | F9: =Data!F34 -> 102426.4291 | G9: =Data!G34 -> 155136.6762 | H9: =Data!H34 -> 216582.753 | I9: =Data!I34 -> 247144.477 | J9: =Data!J34 -> 290188.032
B10: =Data!B35 -> 24 | C10: =Data!C35 -> Otros Activos Corrientes | D10: =Data!D35 -> 551616 | E10: =Data!E35 -> 944360 | F10: =Data!F35 -> 541177.1811 | G10: =Data!G35 -> 900782.7221 | H10: =Data!H35 -> 969803.6992 | I10: =Data!I35 -> 1080336.619 | J10: =Data!J35 -> 1438288
B11: =Data!B36 -> 25 | C11: =Data!C36 -> ACTIVO CORRIENTE | D11: =Data!D36 -> 1790689 | E11: =Data!E36 -> 1978954 | F11: =Data!F36 -> 2495607.094 | G11: =Data!G36 -> 3171210.515 | H11: =Data!H36 -> 3262832.023 | I11: =Data!I36 -> 3050179.705 | J11: =Data!J36 -> 3792711.744
B12: =Data!B37 -> 26 | C12: =Data!C37 -> Propiedad Planta y Equipo - Neto | D12: =Data!D37 -> 3578571 | E12: =Data!E37 -> 4111863 | F12: =Data!F37 -> 6230131.195 | G12: =Data!G37 -> 9881493.802 | H12: =Data!H37 -> 14485502.25 | I12: =Data!I37 -> 13953088.45 | J12: =Data!J37 -> 14564951.74
B13: =Data!B38 -> 27 | C13: =Data!C38 -> Activo Diferido | D13: =Data!D38 -> 203095 | E13: =Data!E38 -> 236460 | F13: =Data!F38 -> 98062.15919 | G13: =Data!G38 -> 95545.28256 | H13: =Data!H38 -> 731385.6708 | I13: =Data!I38 -> 17539.14995 | J13: =Data!J38 -> 77491.496
B14: =Data!B39 -> 28 | C14: =Data!C39 -> Intangibles y Valorizaciones | D14: =Data!D39 -> 831286 | E14: =Data!E39 -> 866629 | F14: =Data!F39 -> 699637.7535 | G14: =Data!G39 -> 1017678.318 | H14: =Data!H39 -> 1303143.604 | I14: =Data!I39 -> 1239047.172 | J14: =Data!J39 -> 1272911.736
B15: =Data!B40 -> 29 | C15: =Data!C40 -> Inversiones Permanentes | D15: =Data!D40 -> 0 | E15: =Data!E40 -> 0 | F15: =Data!F40 -> 0 | G15: =Data!G40 -> 0 | H15: =Data!H40 -> 0 | I15: =Data!I40 -> 0 | J15: =Data!J40 -> 0
B16: =Data!B41 -> 30 | C16: =Data!C41 -> Otros Activos Largo Plazo | D16: =Data!D41 -> 1114007 | E16: =Data!E41 -> 775332 | F16: =Data!F41 -> 455685.6608 | G16: =Data!G41 -> 632224.3022 | H16: =Data!H41 -> 966862.0942 | I16: =Data!I41 -> 798659.9715 | J16: =Data!J41 -> 766338.944
B17: =Data!B42 -> 31 | C17: =Data!C42 -> TOTAL ACTIVO | D17: =Data!D42 -> 7517648 | E17: =Data!E42 -> 7969238 | F17: =Data!F42 -> 9979123.863 | G17: =Data!G42 -> 14798152.22 | H17: =Data!H42 -> 20749725.64 | I17: =Data!I42 -> 19058514.45 | J17: =Data!J42 -> 20474405.66
C19: =Data!C44 -> PASIVO
B20: =Data!B45 -> 32 | C20: =Data!C45 -> Cuentas por Pagar a Proveedores | D20: =Data!D45 -> 349946 | E20: =Data!E45 -> 348110 | F20: =Data!F45 -> 640574.6335 | G20: =Data!G45 -> 591954.4155 | H20: =Data!H45 -> 1070955.227 | I20: =Data!I45 -> 959801.0992 | J20: =Data!J45 -> 503684.28
B21: =Data!B46 -> 33 | C21: =Data!C46 -> Obligaciones Financieras - Corto Plazo | D21: =Data!D46 -> 480483 | E21: =Data!E46 -> 415348 | F21: =Data!F46 -> 84138.88561 | G21: =Data!G46 -> 78386.55944 | H21: =Data!H46 -> 78913.12032 | I21: =Data!I46 -> 88791.0089 | J21: =Data!J46 -> 87902.672
B22: =Data!B47 -> 34 | C22: =Data!C47 -> Porción Corriente de Deuda Financiera de LP | D22: =Data!D47 -> 0 | E22: =Data!E47 -> 0 | F22: =Data!F47 -> 521203.6613 | G22: =Data!G47 -> 1019893.736 | H22: =Data!H47 -> 1221452.651 | I22: =Data!I47 -> 1131714.776 | J22: =Data!J47 -> 1619160.176
B23: =Data!B48 -> 35 | C23: =Data!C48 -> Dividendos por pagar | D23: =Data!D48 -> 0 | E23: =Data!E48 -> 0 | F23: =Data!F48 -> 0 | G23: =Data!G48 -> 0 | H23: =Data!H48 -> 0 | I23: =Data!I48 -> 0 | J23: =Data!J48 -> 0
B24: =Data!B49 -> 36 | C24: =Data!C49 -> Intereses por pagar | D24: =Data!D49 -> 5552 | E24: =Data!E49 -> 5989 | F24: =Data!F49 -> 0 | G24: =Data!G49 -> 0 | H24: =Data!H49 -> 0 | I24: =Data!I49 -> 0 | J24: =Data!J49 -> 0
B25: =Data!B50 -> 37 | C25: =Data!C50 -> Otros Pasivos Corrientes | D25: =Data!D50 -> 1572147 | E25: =Data!E50 -> 1916411 | F25: =Data!F50 -> 1949212.057 | G25: =Data!G50 -> 2829978.73 | H25: =Data!H50 -> 2561634.022 | I25: =Data!I50 -> 2894499.87 | J25: =Data!J50 -> 3491793.248
B26: =Data!B51 -> 38 | C26: =Data!C51 -> PASIVO CORRIENTE | D26: =Data!D51 -> 2408128 | E26: =Data!E51 -> 2685858 | F26: =Data!F51 -> 3195129.238 | G26: =Data!G51 -> 4520213.441 | H26: =Data!H51 -> 4932955.021 | I26: =Data!I51 -> 5074806.753 | J26: =Data!J51 -> 5702540.376
B27: =Data!B52 -> 39 | C27: =Data!C52 -> Obligaciones Financieras - Largo Plazo | D27: =Data!D52 -> 2693394 | E27: =Data!E52 -> 2822982 | F27: =Data!F52 -> 3759881.184 | G27: =Data!G52 -> 6490578.9 | H27: =Data!H52 -> 9637724.642 | I27: =Data!I52 -> 8604523.922 | J27: =Data!J52 -> 9489242.344
B28: =Data!B53 -> 40 | C28: =Data!C53 -> Otros Pasivos de Largo Plazo | D28: =Data!D53 -> 596270 | E28: =Data!E53 -> 366696 | F28: =Data!F53 -> 683504.4059 | G28: =Data!G53 -> 898452.4661 | H28: =Data!H53 -> 1855973.223 | I28: =Data!I53 -> 1117392.387 | J28: =Data!J53 -> 1284958.144
B29: =Data!B54 -> 41 | C29: =Data!C54 -> PASIVO A LARGO PLAZO | D29: =Data!D54 -> 3289664 | E29: =Data!E54 -> 3189678 | F29: =Data!F54 -> 4443385.59 | G29: =Data!G54 -> 7389031.366 | H29: =Data!H54 -> 11493697.86 | I29: =Data!I54 -> 9721916.309 | J29: =Data!J54 -> 10774200.49
B30: =Data!B55 -> 42 | C30: =Data!C55 -> TOTAL PASIVO | D30: =Data!D55 -> 5697792 | E30: =Data!E55 -> 5875536 | F30: =Data!F55 -> 7638514.828 | G30: =Data!G55 -> 11909244.81 | H30: =Data!H55 -> 16426652.89 | I30: =Data!I55 -> 14796723.06 | J30: =Data!J55 -> 16476740.86
C32: =Data!C57 -> PATRIMONIO
B33: =Data!B58 -> 43 | C33: =Data!C58 -> Capital Pagado | D33: =Data!D58 -> 221091 | E33: =Data!E58 -> 221091 | F33: =Data!F58 -> 240127.3351 | G33: =Data!G58 -> 298155.5426 | H33: =Data!H58 -> 392496.3998 | I33: =Data!I58 -> 373957.4823 | J33: =Data!J58 -> 371875.032
B34: =Data!B59 -> 44 | C34: =Data!C59 -> Prima en Colocación de Acciones | D34: =Data!D59 -> 1267915 | E34: =Data!E59 -> 1367135 | F34: =Data!F59 -> 1356180.027 | G34: =Data!G59 -> 1683909.046 | H34: =Data!H59 -> 2216722.965 | I34: =Data!I59 -> 2112019.726 | J34: =Data!J59 -> 2100258.56
B35: =Data!B60 -> 45 | C35: =Data!C60 -> Revalorizaciones e Interés Minoritario | D35: =Data!D60 -> 18601 | E35: =Data!E60 -> -113393 | F35: =Data!F60 -> 67787.80623 | G35: =Data!G60 -> 76843.42274 | H35: =Data!H60 -> 116656.3688 | I35: =Data!I60 -> 141384.4531 | J35: =Data!J60 -> -52422.912
B36: =Data!B61 -> 46 | C36: =Data!C61 -> Reservas y Utilidades Retenidas | D36: =Data!D61 -> 110032 | E36: =Data!E61 -> 267185 | F36: =Data!F61 -> 208847.3325 | G36: =Data!G61 -> 586890.8504 | H36: =Data!H61 -> 1983844.874 | I36: =Data!I61 -> 1500100.307 | J36: =Data!J61 -> 1335342.839
B37: =Data!B62 -> 47 | C37: =Data!C62 -> Utilidad Neta del Ejercicio | D37: =Data!D62 -> 202217 | E37: =Data!E62 -> 351684 | F37: =Data!F62 -> 467666.5341 | G37: =Data!G62 -> 243108.5501 | H37: =Data!H62 -> -386647.8543 | I37: =Data!I62 -> 134329.4167 | J37: =Data!J62 -> 242611.2806
B38: =Data!B63 -> 48 | C38: =Data!C63 -> TOTAL PATRIMONIO | D38: =Data!D63 -> 1819856 | E38: =Data!E63 -> 2093702 | F38: =Data!F63 -> 2340609.035 | G38: =Data!G63 -> 2888907.412 | H38: =Data!H63 -> 4323072.753 | I38: =Data!I63 -> 4261791.385 | J38: =Data!J63 -> 3997664.8
B40: =Data!B65 -> 49 | C40: =Data!C65 -> TOTAL PASIVO + PATRIMONIO | D40: =Data!D65 -> 7517648 | E40: =Data!E65 -> 7969238 | F40: =Data!F65 -> 9979123.863 | G40: =Data!G65 -> 14798152.22 | H40: =Data!H65 -> 20749725.64 | I40: =Data!I65 -> 19058514.45 | J40: =Data!J65 -> 20474405.66
C42: =Data!C67 -> Datos que van al Flujo de Caja
B43: =Data!B68 -> 50 | C43: =Data!C68 -> Impuestos Pagados | D43: =Data!D68 -> 0 | E43: =Data!E68 -> 0 | F43: =Data!F68 -> 0 | G43: =Data!G68 -> 0 | H43: =Data!H68 -> 0 | I43: =Data!I68 -> 0 | J43: =Data!J68 -> 0
B44: =Data!B69 -> 51 | C44: =Data!C69 -> CAPEX | D44: =Data!D69 -> 169942 | E44: =Data!E69 -> 899526 | F44: =Data!F69 -> 497511.591 | G44: =Data!G69 -> 58907.09505 | H44: =Data!H69 -> 434177.1653 | I44: =Data!I69 -> 640765.8495 | J44: =Data!J69 -> 636768.8436
B45: =Data!B70 -> 52 | C45: =Data!C70 -> Dividendos Pagados | D45: =Data!D70 -> 0 | E45: =Data!E70 -> 45064 | F45: =Data!F70 -> 69394.12713 | G45: =Data!G70 -> 78583.1504 | H45: =Data!H70 -> 196331.0589 | I45: =Data!I70 -> 96744.78407 | J45: =Data!J70 -> 460406.011
BOG2018: BOG2018RdR35pQ

Sheet ESF Comparativo
C2: ESTADO DE SITUACIÓN FINANCIERA COMPARATIVO
C3: (En millones de pesos colombianos) | D3: =ESF!D3 -> 2011 | E3: =ESF!E3 -> 2012 | H3: =ESF!F3 -> 2013 | K3: =ESF!G3 -> 2014 | N3: =ESF!H3 -> 2015 | Q3: =ESF!I3 -> 2016 | T3: =ESF!J3 -> 2017
C5: =ESF!C5 -> ACTIVO | D5: AV | E5: AV | F5: AH$ | G5: AH% | H5: AV | I5: AH$ | J5: AH% | K5: AV | L5: AH$ | M5: AH% | N5: AV | O5: AH$ | P5: AH% | Q5: AV | R5: AH$ | S5: AH% | T5: AV | U5: AH$ | V5: AH%
B6: =ESF!B6 -> 20 | C6: =ESF!C6 -> Disponible y equivalentes | D6: =ESF!D6/ESF!D$17 -> 0.1217600239 | E6: =ESF!E6/ESF!E$17 -> 0.08794768082 | F6: =ESF!E6-ESF!D6 -> -214473 | G6: =IF(ISERR(F6/ESF!D6),"",(F6/ESF!D6)) -> -0.2343073516 | H6: =ESF!F6/ESF!F$17 -> 0.1465745466 | I6: =ESF!F6-ESF!E6 -> 761809.5555 | J6: =IF(ISERR(I6/ESF!E6),"",(I6/ESF!E6)) -> 1.086939138 | K6: =ESF!G6/ESF!G$17 -> 0.1036803378 | L6: =ESF!G6-ESF!F6 -> 71591.86517 | M6: =IF(ISERR(L6/ESF!F6),"",(L6/ESF!F6)) -> 0.0489454927 | N6: =ESF!H6/ESF!H$17 -> 0.07358139545 | O6: =ESF!H6-ESF!G6 -> -7483.65296 | P6: =IF(ISERR(O6/ESF!G6),"",(O6/ESF!G6)) -> -0.004877640027 | Q6: =ESF!I6/ESF!I$17 -> 0.06000691193 | R6: =ESF!I6-ESF!H6 -> -383151.1696 | S6: =IF(ISERR(R6/ESF!H6),"",(R6/ESF!H6)) -> -0.2509514892 | T6: =ESF!J6/ESF!J$17 -> 0.07497701634 | U6: =ESF!J6-ESF!I6 -> 391467.25 | V6: =IF(ISERR(U6/ESF!I6),"",(U6/ESF!I6)) -> 0.342298591
B7: =ESF!B7 -> 21 | C7: =ESF!C7 -> Cuentas por cobrar - Clientes | D7: =ESF!D7/ESF!D$17 -> 0.0335992055 | E7: =ESF!E7/ESF!E$17 -> 0.03393498851 | F7: =ESF!E7-ESF!D7 -> 17849 | G7: =IF(ISERR(F7/ESF!D7),"",(F7/ESF!D7)) -> 0.07066476105 | H7: =ESF!F7/ESF!F$17 -> 0.04173748904 | I7: =ESF!F7-ESF!E7 -> 146067.5728 | J7: =IF(ISERR(I7/ESF!E7),"",(I7/ESF!E7)) -> 0.5401188185 | K7: =ESF!G7/ESF!G$17 -> 0.041902379 | L7: =ESF!G7-ESF!F7 -> 203574.21 | M7: =IF(ISERR(L7/ESF!F7),"",(L7/ESF!F7)) -> 0.4887694207 | N7: =ESF!H7/ESF!H$17 -> 0.02851044188 | O7: =ESF!H7-ESF!G7 -> -28493.93588 | P7: =IF(ISERR(O7/ESF!G7),"",(O7/ESF!G7)) -> -0.04595219611 | Q7: =ESF!I7/ESF!I$17 -> 0.03247018147 | R7: =ESF!I7-ESF!H7 -> 27249.57567 | S7: =IF(ISERR(R7/ESF!H7),"",(R7/ESF!H7)) -> 0.04606206848 | T7: =ESF!J7/ESF!J$17 -> 0.0277641751 | U7: =ESF!J7-ESF!I7 -> -50378.43859 | V7: =IF(ISERR(U7/ESF!I7),"",(U7/ESF!I7)) -> -0.08140872285
B8: =ESF!B8 -> 22 | C8: =ESF!C8 -> Deterioro acumulado de Cartera | D8: =ESF!D8/ESF!D$17 -> -0.002816306377 | E8: =ESF!E8/ESF!E$17 -> -0.003172574341 | F8: =ESF!E8-ESF!D8 -> -4111 | G8: =IF(ISERR(F8/ESF!D8),"",(F8/ESF!D8)) -> 0.1941715473 | H8: =ESF!F8/ESF!F$17 -> -0.002724251632 | I8: =ESF!F8-ESF!E8 -> -1902.64447 | J8: =IF(ISERR(I8/ESF!E8),"",(I8/ESF!E8)) -> 0.0752539046 | K8: =ESF!G8/ESF!G$17 -> -0.002639794908 | L8: =ESF!G8-ESF!F8 -> -11878.44241 | M8: =IF(ISERR(L8/ESF!F8),"",(L8/ESF!F8)) -> 0.4369380473 | N8: =ESF!H8/ESF!H$17 -> -0.002020848097 | O8: =ESF!H8-ESF!G8 -> -2867.9567 | P8: =IF(ISERR(O8/ESF!G8),"",(O8/ESF!G8)) -> 0.07341670903 | Q8: =ESF!I8/ESF!I$17 -> -0.002087120267 | R8: =ESF!I8-ESF!H8 -> 2154.63182 | S8: =IF(ISERR(R8/ESF!H8),"",(R8/ESF!H8)) -> -0.05138389728 | T8: =ESF!J8/ESF!J$17 -> -0.0019208919 | U8: =ESF!J8-ESF!I8 -> 448.29176 | V8: =IF(ISERR(U8/ESF!I8),"",(U8/ESF!I8)) -> -0.01127000828
B9: =ESF!B9 -> 23 | C9: =ESF!C9 -> Inventario Neto | D9: =ESF!D9/ESF!D$17 -> 0.01227897342 | E9: =ESF!E9/ESF!E$17 -> 0.01111335864 | F9: =ESF!E9-ESF!D9 -> -3744 | G9: =IF(ISERR(F9/ESF!D9),"",(F9/ESF!D9)) -> -0.04055942541 | H9: =ESF!F9/ESF!F$17 -> 0.01026407033 | I9: =ESF!F9-ESF!E9 -> 13861.42914 | J9: =IF(ISERR(I9/ESF!E9),"",(I9/ESF!E9)) -> 0.1565113661 | K9: =ESF!G9/ESF!G$17 -> 0.01048351672 | L9: =ESF!G9-ESF!F9 -> 52710.2471 | M9: =IF(ISERR(L9/ESF!F9),"",(L9/ESF!F9)) -> 0.514615686 | N9: =ESF!H9/ESF!H$17 -> 0.01043786105 | O9: =ESF!H9-ESF!G9 -> 61446.07672 | P9: =IF(ISERR(O9/ESF!G9),"",(O9/ESF!G9)) -> 0.3960770477 | Q9: =ESF!I9/ESF!I$17 -> 0.01296766743 | R9: =ESF!I9-ESF!H9 -> 30561.72406 | S9: =IF(ISERR(R9/ESF!H9),"",(R9/ESF!H9)) -> 0.1411087616 | T9: =ESF!J9/ESF!J$17 -> 0.01417320907 | U9: =ESF!J9-ESF!I9 -> 43043.55498 | V9: =IF(ISERR(U9/ESF!I9),"",(U9/ESF!I9)) -> 0.1741635318
B10: =ESF!B10 -> 24 | C10: =ESF!C10 -> Otros Activos Corrientes | D10: =ESF!D10/ESF!D$17 -> 0.07337614105 | E10: =ESF!E10/ESF!E$17 -> 0.1185006647 | F10: =ESF!E10-ESF!D10 -> 392744 | G10: =IF(ISERR(F10/ESF!D10),"",(F10/ESF!D10)) -> 0.7119880497 | H10: =ESF!F10/ESF!F$17 -> 0.05423093135 | I10: =ESF!F10-ESF!E10 -> -403182.8189 | J10: =IF(ISERR(I10/ESF!E10),"",(I10/ESF!E10)) -> -0.4269376285 | K10: =ESF!G10/ESF!G$17 -> 0.06087129723 | L10: =ESF!G10-ESF!F10 -> 359605.541 | M10: =IF(ISERR(L10/ESF!F10),"",(L10/ESF!F10)) -> 0.6644876273 | N10: =ESF!H10/ESF!H$17 -> 0.04673814566 | O10: =ESF!H10-ESF!G10 -> 69020.97708 | P10: =IF(ISERR(O10/ESF!G10),"",(O10/ESF!G10)) -> 0.07662333589 | Q10: =ESF!I10/ESF!I$17 -> 0.05668524806 | R10: =ESF!I10-ESF!H10 -> 110532.92 | S10: =IF(ISERR(R10/ESF!H10),"",(R10/ESF!H10)) -> 0.1139745291 | T10: =ESF!J10/ESF!J$17 -> 0.07024809529 | U10: =ESF!J10-ESF!I10 -> 357951.3808 | V10: =IF(ISERR(U10/ESF!I10),"",(U10/ESF!I10)) -> 0.3313331923
B11: =ESF!B11 -> 25 | C11: =ESF!C11 -> ACTIVO CORRIENTE | D11: =ESF!D11/ESF!D$17 -> 0.2381980375 | E11: =ESF!E11/ESF!E$17 -> 0.2483241183 | F11: =ESF!E11-ESF!D11 -> 188265 | G11: =IF(ISERR(F11/ESF!D11),"",(F11/ESF!D11)) -> 0.1051355093 | H11: =ESF!F11/ESF!F$17 -> 0.2500827857 | I11: =ESF!F11-ESF!E11 -> 516653.094 | J11: =IF(ISERR(I11/ESF!E11),"",(I11/ESF!E11)) -> 0.2610738269 | K11: =ESF!G11/ESF!G$17 -> 0.2142977358 | L11: =ESF!G11-ESF!F11 -> 675603.4209 | M11: =IF(ISERR(L11/ESF!F11),"",(L11/ESF!F11)) -> 0.2707170622 | N11: =ESF!H11/ESF!H$17 -> 0.1572469959 | O11: =ESF!H11-ESF!G11 -> 91621.50826 | P11: =IF(ISERR(O11/ESF!G11),"",(O11/ESF!G11)) -> 0.02889165126 | Q11: =ESF!I11/ESF!I$17 -> 0.1600428886 | R11: =ESF!I11-ESF!H11 -> -212652.3181 | S11: =IF(ISERR(R11/ESF!H11),"",(R11/ESF!H11)) -> -0.06517415442 | T11: =ESF!J11/ESF!J$17 -> 0.1852416039 | U11: =ESF!J11-ESF!I11 -> 742532.0389 | V11: =IF(ISERR(U11/ESF!I11),"",(U11/ESF!I11)) -> 0.2434387842
B12: =ESF!B12 -> 26 | C12: =ESF!C12 -> Propiedad Planta y Equipo - Neto | D12: =ESF!D12/ESF!D$17 -> 0.4760226869 | E12: =ESF!E12/ESF!E$17 -> 0.5159668967 | F12: =ESF!E12-ESF!D12 -> 533292 | G12: =IF(ISERR(F12/ESF!D12),"",(F12/ESF!D12)) -> 0.1490237304 | H12: =ESF!F12/ESF!F$17 -> 0.6243164511 | I12: =ESF!F12-ESF!E12 -> 2118268.195 | J12: =IF(ISERR(I12/ESF!E12),"",(I12/ESF!E12)) -> 0.5151602072 | K12: =ESF!G12/ESF!G$17 -> 0.667751869 | L12: =ESF!G12-ESF!F12 -> 3651362.607 | M12: =IF(ISERR(L12/ESF!F12),"",(L12/ESF!F12)) -> 0.5860811743 | N12: =ESF!H12/ESF!H$17 -> 0.6981057243 | O12: =ESF!H12-ESF!G12 -> 4604008.445 | P12: =IF(ISERR(O12/ESF!G12),"",(O12/ESF!G12)) -> 0.4659223127 | Q12: =ESF!I12/ESF!I$17 -> 0.7321183657 | R12: =ESF!I12-ESF!H12 -> -532413.797 | S12: =IF(ISERR(R12/ESF!H12),"",(R12/ESF!H12)) -> -0.03675494215 | T12: =ESF!J12/ESF!J$17 -> 0.7113736039 | U12: =ESF!J12-ESF!I12 -> 611863.2944 | V12: =IF(ISERR(U12/ESF!I12),"",(U12/ESF!I12)) -> 0.0438514596
B13: =ESF!B13 -> 27 | C13: =ESF!C13 -> Activo Diferido | D13: =ESF!D13/ESF!D$17 -> 0.02701576344 | E13: =ESF!E13/ESF!E$17 -> 0.0296715947 | F13: =ESF!E13-ESF!D13 -> 33365 | G13: =IF(ISERR(F13/ESF!D13),"",(F13/ESF!D13)) -> 0.1642827248 | H13: =ESF!F13/ESF!F$17 -> 0.009826730336 | I13: =ESF!F13-ESF!E13 -> -138397.8408 | J13: =IF(ISERR(I13/ESF!E13),"",(I13/ESF!E13)) -> -0.585290708 | K13: =ESF!G13/ESF!G$17 -> 0.006456568438 | L13: =ESF!G13-ESF!F13 -> -2516.87663 | M13: =IF(ISERR(L13/ESF!F13),"",(L13/ESF!F13)) -> -0.02566613514 | N13: =ESF!H13/ESF!H$17 -> 0.03524796826 | O13: =ESF!H13-ESF!G13 -> 635840.3882 | P13: =IF(ISERR(O13/ESF!G13),"",(O13/ESF!G13)) -> 6.654859049 | Q13: =ESF!I13/ESF!I$17 -> 0.000920278965 | R13: =ESF!I13-ESF!H13 -> -713846.5208 | S13: =IF(ISERR(R13/ESF!H13),"",(R13/ESF!H13)) -> -0.9760192869 | T13: =ESF!J13/ESF!J$17 -> 0.003784798312 | U13: =ESF!J13-ESF!I13 -> 59952.34605 | V13: =IF(ISERR(U13/ESF!I13),"",(U13/ESF!I13)) -> 3.418201351
B14: =ESF!B14 -> 28 | C14: =ESF!C14 -> Intangibles y Valorizaciones | D14: =ESF!D14/ESF!D$17 -> 0.1105779361 | E14: =ESF!E14/ESF!E$17 -> 0.1087467836 | F14: =ESF!E14-ESF!D14 -> 35343 | G14: =IF(ISERR(F14/ESF!D14),"",(F14/ESF!D14)) -> 0.04251605344 | H14: =ESF!F14/ESF!F$17 -> 0.07011013824 | I14: =ESF!F14-ESF!E14 -> -166991.2465 | J14: =IF(ISERR(I14/ESF!E14),"",(I14/ESF!E14)) -> -0.1926905821 | K14: =ESF!G14/ESF!G$17 -> 0.06877063451 | L14: =ESF!G14-ESF!F14 -> 318040.5642 | M14: =IF(ISERR(L14/ESF!F14),"",(L14/ESF!F14)) -> 0.4545789055 | N14: =ESF!H14/ESF!H$17 -> 0.06280293179 | O14: =ESF!H14-ESF!G14 -> 285465.2863 | P14: =IF(ISERR(O14/ESF!G14),"",(O14/ESF!G14)) -> 0.2805064049 | Q14: =ESF!I14/ESF!I$17 -> 0.06501278865 | R14: =ESF!I14-ESF!H14 -> -64096.43224 | S14: =IF(ISERR(R14/ESF!H14),"",(R14/ESF!H14)) -> -0.04918600839 | T14: =ESF!J14/ESF!J$17 -> 0.06217087601 | U14: =ESF!J14-ESF!I14 -> 33864.56422 | V14: =IF(ISERR(U14/ESF!I14),"",(U14/ESF!I14)) -> 0.02733113395
B15: =ESF!B15 -> 29 | C15: =ESF!C15 -> Inversiones Permanentes | D15: =ESF!D15/ESF!D$17 -> 0 | E15: =ESF!E15/ESF!E$17 -> 0 | F15: =ESF!E15-ESF!D15 -> 0 | G15: =IF(ISERR(F15/ESF!D15),"",(F15/ESF!D15)) ->  | H15: =ESF!F15/ESF!F$17 -> 0 | I15: =ESF!F15-ESF!E15 -> 0 | J15: =IF(ISERR(I15/ESF!E15),"",(I15/ESF!E15)) ->  | K15: =ESF!G15/ESF!G$17 -> 0 | L15: =ESF!G15-ESF!F15 -> 0 | M15: =IF(ISERR(L15/ESF!F15),"",(L15/ESF!F15)) ->  | N15: =ESF!H15/ESF!H$17 -> 0 | O15: =ESF!H15-ESF!G15 -> 0 | P15: =IF(ISERR(O15/ESF!G15),"",(O15/ESF!G15)) ->  | Q15: =ESF!I15/ESF!I$17 -> 0 | R15: =ESF!I15-ESF!H15 -> 0 | S15: =IF(ISERR(R15/ESF!H15),"",(R15/ESF!H15)) ->  | T15: =ESF!J15/ESF!J$17 -> 0 | U15: =ESF!J15-ESF!I15 -> 0 | V15: =IF(ISERR(U15/ESF!I15),"",(U15/ESF!I15)) -> 
B16: =ESF!B16 -> 30 | C16: =ESF!C16 -> Otros Activos Largo Plazo | D16: =ESF!D16/ESF!D$17 -> 0.1481855761 | E16: =ESF!E16/ESF!E$17 -> 0.09729060671 | F16: =ESF!E16-ESF!D16 -> -338675 | G16: =IF(ISERR(F16/ESF!D16),"",(F16/ESF!D16)) -> -0.3040151453 | H16: =ESF!F16/ESF!F$17 -> 0.04566389466 | I16: =ESF!F16-ESF!E16 -> -319646.3392 | J16: =IF(ISERR(I16/ESF!E16),"",(I16/ESF!E16)) -> -0.412270278 | K16: =ESF!G16/ESF!G$17 -> 0.04272319225 | L16: =ESF!G16-ESF!F16 -> 176538.6414 | M16: =IF(ISERR(L16/ESF!F16),"",(L16/ESF!F16)) -> 0.3874132029 | N16: =ESF!H16/ESF!H$17 -> 0.04659637969 | O16: =ESF!H16-ESF!G16 -> 334637.792 | P16: =IF(ISERR(O16/ESF!G16),"",(O16/ESF!G16)) -> 0.5293023233 | Q16: =ESF!I16/ESF!I$17 -> 0.0419056781 | R16: =ESF!I16-ESF!H16 -> -168202.1228 | S16: =IF(ISERR(R16/ESF!H16),"",(R16/ESF!H16)) -> -0.1739670257 | T16: =ESF!J16/ESF!J$17 -> 0.03742911792 | U16: =ESF!J16-ESF!I16 -> -32321.02747 | V16: =IF(ISERR(U16/ESF!I16),"",(U16/ESF!I16)) -> -0.04046907148
B17: =ESF!B17 -> 31 | C17: =ESF!C17 -> TOTAL ACTIVO | D17: =ESF!D17/ESF!D$17 -> 1 | E17: =ESF!E17/ESF!E$17 -> 1 | F17: =ESF!E17-ESF!D17 -> 451590 | G17: =IF(ISERR(F17/ESF!D17),"",(F17/ESF!D17)) -> 0.06007064976 | H17: =ESF!F17/ESF!F$17 -> 1 | I17: =ESF!F17-ESF!E17 -> 2009885.863 | J17: =IF(ISERR(I17/ESF!E17),"",(I17/ESF!E17)) -> 0.2522055261 | K17: =ESF!G17/ESF!G$17 -> 1 | L17: =ESF!G17-ESF!F17 -> 4819028.357 | M17: =IF(ISERR(L17/ESF!F17),"",(L17/ESF!F17)) -> 0.4829109672 | N17: =ESF!H17/ESF!H$17 -> 1 | O17: =ESF!H17-ESF!G17 -> 5951573.419 | P17: =IF(ISERR(O17/ESF!G17),"",(O17/ESF!G17)) -> 0.4021835518 | Q17: =ESF!I17/ESF!I$17 -> 1 | R17: =ESF!I17-ESF!H17 -> -1691211.191 | S17: =IF(ISERR(R17/ESF!H17),"",(R17/ESF!H17)) -> -0.08150523146 | T17: =ESF!J17/ESF!J$17 -> 1 | U17: =ESF!J17-ESF!I17 -> 1415891.216 | V17: =IF(ISERR(U17/ESF!I17),"",(U17/ESF!I17)) -> 0.07429179331
C19: =ESF!C19 -> PASIVO | D19: AV | E19: AV | F19: AH$ | G19: AH% | H19: AV | I19: AH$ | J19: AH% | K19: AV | L19: AH$ | M19: AH% | N19: AV | O19: AH$ | P19: AH% | Q19: AV | R19: AH$ | S19: AH% | T19: AV | U19: AH$ | V19: AH%
B20: =ESF!B20 -> 32 | C20: =ESF!C20 -> Cuentas por Pagar a Proveedores | D20: =ESF!D20/ESF!D$17 -> 0.04654993157 | E20: =ESF!E20/ESF!E$17 -> 0.04368171712 | F20: =ESF!E20-ESF!D20 -> -1836 | G20: =IF(ISERR(F20/ESF!D20),"",(F20/ESF!D20)) -> -0.005246523749 | H20: =ESF!F20/ESF!F$17 -> 0.06419147034 | I20: =ESF!F20-ESF!E20 -> 292464.6335 | J20: =IF(ISERR(I20/ESF!E20),"",(I20/ESF!E20)) -> 0.8401500488 | K20: =ESF!G20/ESF!G$17 -> 0.04000191421 | L20: =ESF!G20-ESF!F20 -> -48620.218 | M20: =IF(ISERR(L20/ESF!F20),"",(L20/ESF!F20)) -> -0.07590094184 | N20: =ESF!H20/ESF!H$17 -> 0.05161298255 | O20: =ESF!H20-ESF!G20 -> 479000.8117 | P20: =IF(ISERR(O20/ESF!G20),"",(O20/ESF!G20)) -> 0.8091853007 | Q20: =ESF!I20/ESF!I$17 -> 0.05036075093 | R20: =ESF!I20-ESF!H20 -> -111154.128 | S20: =IF(ISERR(R20/ESF!H20),"",(R20/ESF!H20)) -> -0.1037897059 | T20: =ESF!J20/ESF!J$17 -> 0.02460067893 | U20: =ESF!J20-ESF!I20 -> -456116.8192 | V20: =IF(ISERR(U20/ESF!I20),"",(U20/ESF!I20)) -> -0.4752201467
B21: =ESF!B21 -> 33 | C21: =ESF!C21 -> Obligaciones Financieras - Corto Plazo | D21: =ESF!D21/ESF!D$17 -> 0.06391400608 | E21: =ESF!E21/ESF!E$17 -> 0.05211891024 | F21: =ESF!E21-ESF!D21 -> -65135 | G21: =IF(ISERR(F21/ESF!D21),"",(F21/ESF!D21)) -> -0.1355615079 | H21: =ESF!F21/ESF!F$17 -> 0.008431490256 | I21: =ESF!F21-ESF!E21 -> -331209.1144 | J21: =IF(ISERR(I21/ESF!E21),"",(I21/ESF!E21)) -> -0.797425567 | K21: =ESF!G21/ESF!G$17 -> 0.005297050488 | L21: =ESF!G21-ESF!F21 -> -5752.32617 | M21: =IF(ISERR(L21/ESF!F21),"",(L21/ESF!F21)) -> -0.06836703539 | N21: =ESF!H21/ESF!H$17 -> 0.003803092228 | O21: =ESF!H21-ESF!G21 -> 526.56088 | P21: =IF(ISERR(O21/ESF!G21),"",(O21/ESF!G21)) -> 0.006717489373 | Q21: =ESF!I21/ESF!I$17 -> 0.004658863058 | R21: =ESF!I21-ESF!H21 -> 9877.88858 | S21: =IF(ISERR(R21/ESF!H21),"",(R21/ESF!H21)) -> 0.1251742238 | T21: =ESF!J21/ESF!J$17 -> 0.004293295417 | U21: =ESF!J21-ESF!I21 -> -888.3369 | V21: =IF(ISERR(U21/ESF!I21),"",(U21/ESF!I21)) -> -0.01000480692
B22: =ESF!B22 -> 34 | C22: =ESF!C22 -> Porción Corriente de Deuda Financiera de LP | D22: =ESF!D22/ESF!D$17 -> 0 | E22: =ESF!E22/ESF!E$17 -> 0 | F22: =ESF!E22-ESF!D22 -> 0 | G22: =IF(ISERR(F22/ESF!D22),"",(F22/ESF!D22)) ->  | H22: =ESF!F22/ESF!F$17 -> 0.05222940095 | I22: =ESF!F22-ESF!E22 -> 521203.6613 | J22: =IF(ISERR(I22/ESF!E22),"",(I22/ESF!E22)) ->  | K22: =ESF!G22/ESF!G$17 -> 0.06892034361 | L22: =ESF!G22-ESF!F22 -> 498690.0744 | M22: =IF(ISERR(L22/ESF!F22),"",(L22/ESF!F22)) -> 0.9568046262 | N22: =ESF!H22/ESF!H$17 -> 0.05886596635 | O22: =ESF!H22-ESF!G22 -> 201558.9155 | P22: =IF(ISERR(O22/ESF!G22),"",(O22/ESF!G22)) -> 0.1976273688 | Q22: =ESF!I22/ESF!I$17 -> 0.05938105926 | R22: =ESF!I22-ESF!H22 -> -89737.87537 | S22: =IF(ISERR(R22/ESF!H22),"",(R22/ESF!H22)) -> -0.07346815719 | T22: =ESF!J22/ESF!J$17 -> 0.07908215763 | U22: =ESF!J22-ESF!I22 -> 487445.4002 | V22: =IF(ISERR(U22/ESF!I22),"",(U22/ESF!I22)) -> 0.430714002
B23: =ESF!B23 -> 35 | C23: =ESF!C23 -> Dividendos por pagar | D23: =ESF!D23/ESF!D$17 -> 0 | E23: =ESF!E23/ESF!E$17 -> 0 | F23: =ESF!E23-ESF!D23 -> 0 | G23: =IF(ISERR(F23/ESF!D23),"",(F23/ESF!D23)) ->  | H23: =ESF!F23/ESF!F$17 -> 0 | I23: =ESF!F23-ESF!E23 -> 0 | J23: =IF(ISERR(I23/ESF!E23),"",(I23/ESF!E23)) ->  | K23: =ESF!G23/ESF!G$17 -> 0 | L23: =ESF!G23-ESF!F23 -> 0 | M23: =IF(ISERR(L23/ESF!F23),"",(L23/ESF!F23)) ->  | N23: =ESF!H23/ESF!H$17 -> 0 | O23: =ESF!H23-ESF!G23 -> 0 | P23: =IF(ISERR(O23/ESF!G23),"",(O23/ESF!G23)) ->  | Q23: =ESF!I23/ESF!I$17 -> 0 | R23: =ESF!I23-ESF!H23 -> 0 | S23: =IF(ISERR(R23/ESF!H23),"",(R23/ESF!H23)) ->  | T23: =ESF!J23/ESF!J$17 -> 0 | U23: =ESF!J23-ESF!I23 -> 0 | V23: =IF(ISERR(U23/ESF!I23),"",(U23/ESF!I23)) -> 
B24: =ESF!B24 -> 36 | C24: =ESF!C24 -> Intereses por pagar | D24: =ESF!D24/ESF!D$17 -> 0.000738528859 | E24: =ESF!E24/ESF!E$17 -> 0.0007515147621 | F24: =ESF!E24-ESF!D24 -> 437 | G24: =IF(ISERR(F24/ESF!D24),"",(F24/ESF!D24)) -> 0.07871037464 | H24: =ESF!F24/ESF!F$17 -> 0 | I24: =ESF!F24-ESF!E24 -> -5989 | J24: =IF(ISERR(I24/ESF!E24),"",(I24/ESF!E24)) -> -1 | K24: =ESF!G24/ESF!G$17 -> 0 | L24: =ESF!G24-ESF!F24 -> 0 | M24: =IF(ISERR(L24/ESF!F24),"",(L24/ESF!F24)) ->  | N24: =ESF!H24/ESF!H$17 -> 0 | O24: =ESF!H24-ESF!G24 -> 0 | P24: =IF(ISERR(O24/ESF!G24),"",(O24/ESF!G24)) ->  | Q24: =ESF!I24/ESF!I$17 -> 0 | R24: =ESF!I24-ESF!H24 -> 0 | S24: =IF(ISERR(R24/ESF!H24),"",(R24/ESF!H24)) ->  | T24: =ESF!J24/ESF!J$17 -> 0 | U24: =ESF!J24-ESF!I24 -> 0 | V24: =IF(ISERR(U24/ESF!I24),"",(U24/ESF!I24)) -> 
B25: =ESF!B25 -> 37 | C25: =ESF!C25 -> Otros Pasivos Corrientes | D25: =ESF!D25/ESF!D$17 -> 0.209127509 | E25: =ESF!E25/ESF!E$17 -> 0.2404760656 | F25: =ESF!E25-ESF!D25 -> 344264 | G25: =IF(ISERR(F25/ESF!D25),"",(F25/ESF!D25)) -> 0.2189769786 | H25: =ESF!F25/ESF!F$17 -> 0.1953289772 | I25: =ESF!F25-ESF!E25 -> 32801.05728 | J25: =IF(ISERR(I25/ESF!E25),"",(I25/ESF!E25)) -> 0.01711587821 | K25: =ESF!G25/ESF!G$17 -> 0.1912386552 | L25: =ESF!G25-ESF!F25 -> 880766.6728 | M25: =IF(ISERR(L25/ESF!F25),"",(L25/ESF!F25)) -> 0.4518578004 | N25: =ESF!H25/ESF!H$17 -> 0.1234538744 | O25: =ESF!H25-ESF!G25 -> -268344.7077 | P25: =IF(ISERR(O25/ESF!G25),"",(O25/ESF!G25)) -> -0.09482216414 | Q25: =ESF!I25/ESF!I$17 -> 0.1518743697 | R25: =ESF!I25-ESF!H25 -> 332865.8472 | S25: =IF(ISERR(R25/ESF!H25),"",(R25/ESF!H25)) -> 0.1299427804 | T25: =ESF!J25/ESF!J$17 -> 0.1705443032 | U25: =ESF!J25-ESF!I25 -> 597293.3784 | V25: =IF(ISERR(U25/ESF!I25),"",(U25/ESF!I25)) -> 0.2063546054
B26: =ESF!B26 -> 38 | C26: =ESF!C26 -> PASIVO CORRIENTE | D26: =ESF!D26/ESF!D$17 -> 0.3203299755 | E26: =ESF!E26/ESF!E$17 -> 0.3370282077 | F26: =ESF!E26-ESF!D26 -> 277730 | G26: =IF(ISERR(F26/ESF!D26),"",(F26/ESF!D26)) -> 0.1153302482 | H26: =ESF!F26/ESF!F$17 -> 0.3201813387 | I26: =ESF!F26-ESF!E26 -> 509271.2377 | J26: =IF(ISERR(I26/ESF!E26),"",(I26/ESF!E26)) -> 0.1896121231 | K26: =ESF!G26/ESF!G$17 -> 0.3054579635 | L26: =ESF!G26-ESF!F26 -> 1325084.203 | M26: =IF(ISERR(L26/ESF!F26),"",(L26/ESF!F26)) -> 0.4147200643 | N26: =ESF!H26/ESF!H$17 -> 0.2377359155 | O26: =ESF!H26-ESF!G26 -> 412741.5804 | P26: =IF(ISERR(O26/ESF!G26),"",(O26/ESF!G26)) -> 0.09131019714 | Q26: =ESF!I26/ESF!I$17 -> 0.266275043 | R26: =ESF!I26-ESF!H26 -> 141851.7324 | S26: =IF(ISERR(R26/ESF!H26),"",(R26/ESF!H26)) -> 0.02875593468 | T26: =ESF!J26/ESF!J$17 -> 0.2785204352 | U26: =ESF!J26-ESF!I26 -> 627733.6226 | V26: =IF(ISERR(U26/ESF!I26),"",(U26/ESF!I26)) -> 0.1236960643
B27: =ESF!B27 -> 39 | C27: =ESF!C27 -> Obligaciones Financieras - Largo Plazo | D27: =ESF!D27/ESF!D$17 -> 0.3582761523 | E27: =ESF!E27/ESF!E$17 -> 0.3542348716 | F27: =ESF!E27-ESF!D27 -> 129588 | G27: =IF(ISERR(F27/ESF!D27),"",(F27/ESF!D27)) -> 0.0481132727 | H27: =ESF!F27/ESF!F$17 -> 0.3767746784 | I27: =ESF!F27-ESF!E27 -> 936899.1839 | J27: =IF(ISERR(I27/ESF!E27),"",(I27/ESF!E27)) -> 0.3318828047 | K27: =ESF!G27/ESF!G$17 -> 0.4386073885 | L27: =ESF!G27-ESF!F27 -> 2730697.716 | M27: =IF(ISERR(L27/ESF!F27),"",(L27/ESF!F27)) -> 0.7262723429 | N27: =ESF!H27/ESF!H$17 -> 0.4644747988 | O27: =ESF!H27-ESF!G27 -> 3147145.741 | P27: =IF(ISERR(O27/ESF!G27),"",(O27/ESF!G27)) -> 0.4848790516 | Q27: =ESF!I27/ESF!I$17 -> 0.4514792559 | R27: =ESF!I27-ESF!H27 -> -1033200.72 | S27: =IF(ISERR(R27/ESF!H27),"",(R27/ESF!H27)) -> -0.1072038015 | T27: =ESF!J27/ESF!J$17 -> 0.4634685128 | U27: =ESF!J27-ESF!I27 -> 884718.4218 | V27: =IF(ISERR(U27/ESF!I27),"",(U27/ESF!I27)) -> 0.1028201478
B28: =ESF!B28 -> 40 | C28: =ESF!C28 -> Otros Pasivos de Largo Plazo | D28: =ESF!D28/ESF!D$17 -> 0.07931603076 | E28: =ESF!E28/ESF!E$17 -> 0.04601393508 | F28: =ESF!E28-ESF!D28 -> -229574 | G28: =IF(ISERR(F28/ESF!D28),"",(F28/ESF!D28)) -> -0.3850168548 | H28: =ESF!F28/ESF!F$17 -> 0.06849342841 | I28: =ESF!F28-ESF!E28 -> 316808.4059 | J28: =IF(ISERR(I28/ESF!E28),"",(I28/ESF!E28)) -> 0.8639538089 | K28: =ESF!G28/ESF!G$17 -> 0.06071382783 | L28: =ESF!G28-ESF!F28 -> 214948.0602 | M28: =IF(ISERR(L28/ESF!F28),"",(L28/ESF!F28)) -> 0.3144794069 | N28: =ESF!H28/ESF!H$17 -> 0.08944567533 | O28: =ESF!H28-ESF!G28 -> 957520.7565 | P28: =IF(ISERR(O28/ESF!G28),"",(O28/ESF!G28)) -> 1.06574448 | Q28: =ESF!I28/ESF!I$17 -> 0.05862956371 | R28: =ESF!I28-ESF!H28 -> -738580.8356 | S28: =IF(ISERR(R28/ESF!H28),"",(R28/ESF!H28)) -> -0.397948002 | T28: =ESF!J28/ESF!J$17 -> 0.06275924025 | U28: =ESF!J28-ESF!I28 -> 167565.757 | V28: =IF(ISERR(U28/ESF!I28),"",(U28/ESF!I28)) -> 0.1499614272
B29: =ESF!B29 -> 41 | C29: =ESF!C29 -> PASIVO A LARGO PLAZO | D29: =ESF!D29/ESF!D$17 -> 0.4375921831 | E29: =ESF!E29/ESF!E$17 -> 0.4002488067 | F29: =ESF!E29-ESF!D29 -> -99986 | G29: =IF(ISERR(F29/ESF!D29),"",(F29/ESF!D29)) -> -0.03039398553 | H29: =ESF!F29/ESF!F$17 -> 0.4452681068 | I29: =ESF!F29-ESF!E29 -> 1253707.59 | J29: =IF(ISERR(I29/ESF!E29),"",(I29/ESF!E29)) -> 0.3930514584 | K29: =ESF!G29/ESF!G$17 -> 0.4993212164 | L29: =ESF!G29-ESF!F29 -> 2945645.777 | M29: =IF(ISERR(L29/ESF!F29),"",(L29/ESF!F29)) -> 0.6629282373 | N29: =ESF!H29/ESF!H$17 -> 0.5539204741 | O29: =ESF!H29-ESF!G29 -> 4104666.498 | P29: =IF(ISERR(O29/ESF!G29),"",(O29/ESF!G29)) -> 0.5555080625 | Q29: =ESF!I29/ESF!I$17 -> 0.5101088196 | R29: =ESF!I29-ESF!H29 -> -1771781.555 | S29: =IF(ISERR(R29/ESF!H29),"",(R29/ESF!H29)) -> -0.1541524387 | T29: =ESF!J29/ESF!J$17 -> 0.5262277531 | U29: =ESF!J29-ESF!I29 -> 1052284.179 | V29: =IF(ISERR(U29/ESF!I29),"",(U29/ESF!I29)) -> 0.1082383499
B30: =ESF!B30 -> 42 | C30: =ESF!C30 -> TOTAL PASIVO | D30: =ESF!D30/ESF!D$17 -> 0.7579221586 | E30: =ESF!E30/ESF!E$17 -> 0.7372770144 | F30: =ESF!E30-ESF!D30 -> 177744 | G30: =IF(ISERR(F30/ESF!D30),"",(F30/ESF!D30)) -> 0.03119524195 | H30: =ESF!F30/ESF!F$17 -> 0.7654494455 | I30: =ESF!F30-ESF!E30 -> 1762978.828 | J30: =IF(ISERR(I30/ESF!E30),"",(I30/ESF!E30)) -> 0.3000541274 | K30: =ESF!G30/ESF!G$17 -> 0.8047791799 | L30: =ESF!G30-ESF!F30 -> 4270729.98 | M30: =IF(ISERR(L30/ESF!F30),"",(L30/ESF!F30)) -> 0.5591047574 | N30: =ESF!H30/ESF!H$17 -> 0.7916563896 | O30: =ESF!H30-ESF!G30 -> 4517408.078 | P30: =IF(ISERR(O30/ESF!G30),"",(O30/ESF!G30)) -> 0.3793194406 | Q30: =ESF!I30/ESF!I$17 -> 0.7763838626 | R30: =ESF!I30-ESF!H30 -> -1629929.823 | S30: =IF(ISERR(R30/ESF!H30),"",(R30/ESF!H30)) -> -0.0992247072 | T30: =ESF!J30/ESF!J$17 -> 0.8047481883 | U30: =ESF!J30-ESF!I30 -> 1680017.801 | V30: =IF(ISERR(U30/ESF!I30),"",(U30/ESF!I30)) -> 0.1135398557
C32: =ESF!C32 -> PATRIMONIO | D32: AV | E32: AV | F32: AH$ | G32: AH% | H32: AV | I32: AH$ | J32: AH% | K32: AV | L32: AH$ | M32: AH% | N32: AV | O32: AH$ | P32: AH% | Q32: AV | R32: AH$ | S32: AH% | T32: AV | U32: AH$ | V32: AH%
B33: =ESF!B33 -> 43 | C33: =ESF!C33 -> Capital Pagado | D33: =ESF!D33/ESF!D$17 -> 0.02940959726 | E33: =ESF!E33/ESF!E$17 -> 0.02774305398 | F33: =ESF!E33-ESF!D33 -> 0 | G33: =IF(ISERR(F33/ESF!D33),"",(F33/ESF!D33)) -> 0 | H33: =ESF!F33/ESF!F$17 -> 0.02406296769 | I33: =ESF!F33-ESF!E33 -> 19036.33509 | J33: =IF(ISERR(I33/ESF!E33),"",(I33/ESF!E33)) -> 0.08610180916 | K33: =ESF!G33/ESF!G$17 -> 0.02014816027 | L33: =ESF!G33-ESF!F33 -> 58028.20749 | M33: =IF(ISERR(L33/ESF!F33),"",(L33/ESF!F33)) -> 0.2416559842 | N33: =ESF!H33/ESF!H$17 -> 0.01891573926 | O33: =ESF!H33-ESF!G33 -> 94340.85723 | P33: =IF(ISERR(O33/ESF!G33),"",(O33/ESF!G33)) -> 0.3164149035 | Q33: =ESF!I33/ESF!I$17 -> 0.01962154413 | R33: =ESF!I33-ESF!H33 -> -18538.91748 | S33: =IF(ISERR(R33/ESF!H33),"",(R33/ESF!H33)) -> -0.04723334402 | T33: =ESF!J33/ESF!J$17 -> 0.01816292195 | U33: =ESF!J33-ESF!I33 -> -2082.45033 | V33: =IF(ISERR(U33/ESF!I33),"",(U33/ESF!I33)) -> -0.005568682079
B34: =ESF!B34 -> 44 | C34: =ESF!C34 -> Prima en Colocación de Acciones | D34: =ESF!D34/ESF!D$17 -> 0.1686584687 | E34: =ESF!E34/ESF!E$17 -> 0.1715515335 | F34: =ESF!E34-ESF!D34 -> 99220 | G34: =IF(ISERR(F34/ESF!D34),"",(F34/ESF!D34)) -> 0.07825445712 | H34: =ESF!F34/ESF!F$17 -> 0.135901713 | I34: =ESF!F34-ESF!E34 -> -10954.9728 | J34: =IF(ISERR(I34/ESF!E34),"",(I34/ESF!E34)) -> -0.008013087808 | K34: =ESF!G34/ESF!G$17 -> 0.1137918452 | L34: =ESF!G34-ESF!F34 -> 327729.0192 | M34: =IF(ISERR(L34/ESF!F34),"",(L34/ESF!F34)) -> 0.2416559842 | N34: =ESF!H34/ESF!H$17 -> 0.1068314349 | O34: =ESF!H34-ESF!G34 -> 532813.9184 | P34: =IF(ISERR(O34/ESF!G34),"",(O34/ESF!G34)) -> 0.3164149035 | Q34: =ESF!I34/ESF!I$17 -> 0.110817647 | R34: =ESF!I34-ESF!H34 -> -104703.2384 | S34: =IF(ISERR(R34/ESF!H34),"",(R34/ESF!H34)) -> -0.04723334402 | T34: =ESF!J34/ESF!J$17 -> 0.1025797083 | U34: =ESF!J34-ESF!I34 -> -11761.1664 | V34: =IF(ISERR(U34/ESF!I34),"",(U34/ESF!I34)) -> -0.005568682079
B35: =ESF!B35 -> 45 | C35: =ESF!C35 -> Revalorizaciones e Interés Minoritario | D35: =ESF!D35/ESF!D$17 -> 0.002474311114 | E35: =ESF!E35/ESF!E$17 -> -0.01422883844 | F35: =ESF!E35-ESF!D35 -> -131994 | G35: =IF(ISERR(F35/ESF!D35),"",(F35/ESF!D35)) -> -7.096070104 | H35: =ESF!F35/ESF!F$17 -> 0.006792961703 | I35: =ESF!F35-ESF!E35 -> 181180.8062 | J35: =IF(ISERR(I35/ESF!E35),"",(I35/ESF!E35)) -> -1.597812971 | K35: =ESF!G35/ESF!G$17 -> 0.005192771476 | L35: =ESF!G35-ESF!F35 -> 9055.61651 | M35: =IF(ISERR(L35/ESF!F35),"",(L35/ESF!F35)) -> 0.133587691 | N35: =ESF!H35/ESF!H$17 -> 0.005622068013 | O35: =ESF!H35-ESF!G35 -> 39812.94606 | P35: =IF(ISERR(O35/ESF!G35),"",(O35/ESF!G35)) -> 0.5181047986 | Q35: =ESF!I35/ESF!I$17 -> 0.007418440375 | R35: =ESF!I35-ESF!H35 -> 24728.08427 | S35: =IF(ISERR(R35/ESF!H35),"",(R35/ESF!H35)) -> 0.2119737184 | T35: =ESF!J35/ESF!J$17 -> -0.002560411905 | U35: =ESF!J35-ESF!I35 -> -193807.3651 | V35: =IF(ISERR(U35/ESF!I35),"",(U35/ESF!I35)) -> -1.370782719
B36: =ESF!B36 -> 46 | C36: =ESF!C36 -> Reservas y Utilidades Retenidas | D36: =ESF!D36/ESF!D$17 -> 0.01463649269 | E36: =ESF!E36/ESF!E$17 -> 0.03352704487 | F36: =ESF!E36-ESF!D36 -> 157153 | G36: =IF(ISERR(F36/ESF!D36),"",(F36/ESF!D36)) -> 1.428248146 | H36: =ESF!F36/ESF!F$17 -> 0.02092842372 | I36: =ESF!F36-ESF!E36 -> -58337.66747 | J36: =IF(ISERR(I36/ESF!E36),"",(I36/ESF!E36)) -> -0.218341851 | K36: =ESF!G36/ESF!G$17 -> 0.03965973871 | L36: =ESF!G36-ESF!F36 -> 378043.5179 | M36: =IF(ISERR(L36/ESF!F36),"",(L36/ESF!F36)) -> 1.810142908 | N36: =ESF!H36/ESF!H$17 -> 0.09560824605 | O36: =ESF!H36-ESF!G36 -> 1396954.024 | P36: =IF(ISERR(O36/ESF!G36),"",(O36/ESF!G36)) -> 2.380262059 | Q36: =ESF!I36/ESF!I$17 -> 0.07871024318 | R36: =ESF!I36-ESF!H36 -> -483744.5676 | S36: =IF(ISERR(R36/ESF!H36),"",(R36/ESF!H36)) -> -0.2438419323 | T36: =ESF!J36/ESF!J$17 -> 0.06522010266 | U36: =ESF!J36-ESF!I36 -> -164757.4674 | V36: =IF(ISERR(U36/ESF!I36),"",(U36/ESF!I36)) -> -0.1098309671
B37: =ESF!B37 -> 47 | C37: =ESF!C37 -> Utilidad Neta del Ejercicio | D37: =ESF!D37/ESF!D$17 -> 0.02689897159 | E37: =ESF!E37/ESF!E$17 -> 0.04413019162 | F37: =ESF!E37-ESF!D37 -> 149467 | G37: =IF(ISERR(F37/ESF!D37),"",(F37/ESF!D37)) -> 0.7391416152 | H37: =ESF!F37/ESF!F$17 -> 0.04686448836 | I37: =ESF!F37-ESF!E37 -> 115982.5341 | J37: =IF(ISERR(I37/ESF!E37),"",(I37/ESF!E37)) -> 0.3297918988 | K37: =ESF!G37/ESF!G$17 -> 0.01642830446 | L37: =ESF!G37-ESF!F37 -> -224557.984 | M37: =IF(ISERR(L37/ESF!F37),"",(L37/ESF!F37)) -> -0.4801668873 | N37: =ESF!H37/ESF!H$17 -> -0.01863387791 | O37: =ESF!H37-ESF!G37 -> -629756.4044 | P37: =IF(ISERR(O37/ESF!G37),"",(O37/ESF!G37)) -> -2.590432974 | Q37: =ESF!I37/ESF!I$17 -> 0.007048262713 | R37: =ESF!I37-ESF!H37 -> 520977.271 | S37: =IF(ISERR(R37/ESF!H37),"",(R37/ESF!H37)) -> -1.347420567 | T37: =ESF!J37/ESF!J$17 -> 0.01184949076 | U37: =ESF!J37-ESF!I37 -> 108281.8639 | V37: =IF(ISERR(U37/ESF!I37),"",(U37/ESF!I37)) -> 0.806091968
B38: =ESF!B38 -> 48 | C38: =ESF!C38 -> TOTAL PATRIMONIO | D38: =ESF!D38/ESF!D$17 -> 0.2420778414 | E38: =ESF!E38/ESF!E$17 -> 0.2627229856 | F38: =ESF!E38-ESF!D38 -> 273846 | G38: =IF(ISERR(F38/ESF!D38),"",(F38/ESF!D38)) -> 0.150476741 | H38: =ESF!F38/ESF!F$17 -> 0.2345505545 | I38: =ESF!F38-ESF!E38 -> 246907.0352 | J38: =IF(ISERR(I38/ESF!E38),"",(I38/ESF!E38)) -> 0.1179284517 | K38: =ESF!G38/ESF!G$17 -> 0.1952208201 | L38: =ESF!G38-ESF!F38 -> 548298.3771 | M38: =IF(ISERR(L38/ESF!F38),"",(L38/ESF!F38)) -> 0.234254576 | N38: =ESF!H38/ESF!H$17 -> 0.2083436104 | O38: =ESF!H38-ESF!G38 -> 1434165.341 | P38: =IF(ISERR(O38/ESF!G38),"",(O38/ESF!G38)) -> 0.4964386657 | Q38: =ESF!I38/ESF!I$17 -> 0.2236161374 | R38: =ESF!I38-ESF!H38 -> -61281.36814 | S38: =IF(ISERR(R38/ESF!H38),"",(R38/ESF!H38)) -> -0.01417541911 | T38: =ESF!J38/ESF!J$17 -> 0.1952518117 | U38: =ESF!J38-ESF!I38 -> -264126.5853 | V38: =IF(ISERR(U38/ESF!I38),"",(U38/ESF!I38)) -> -0.06197548435
B40: =ESF!B40 -> 49 | C40: =ESF!C40 -> TOTAL PASIVO + PATRIMONIO | D40: =ESF!D40/ESF!D$17 -> 1 | E40: =ESF!E40/ESF!E$17 -> 1 | F40: =ESF!E40-ESF!D40 -> 451590 | G40: =IF(ISERR(F40/ESF!D40),"",(F40/ESF!D40)) -> 0.06007064976 | H40: =ESF!F40/ESF!F$17 -> 1 | I40: =ESF!F40-ESF!E40 -> 2009885.863 | J40: =IF(ISERR(I40/ESF!E40),"",(I40/ESF!E40)) -> 0.2522055261 | K40: =ESF!G40/ESF!G$17 -> 1 | L40: =ESF!G40-ESF!F40 -> 4819028.357 | M40: =IF(ISERR(L40/ESF!F40),"",(L40/ESF!F40)) -> 0.4829109672 | N40: =ESF!H40/ESF!H$17 -> 1 | O40: =ESF!H40-ESF!G40 -> 5951573.419 | P40: =IF(ISERR(O40/ESF!G40),"",(O40/ESF!G40)) -> 0.4021835518 | Q40: =ESF!I40/ESF!I$17 -> 1 | R40: =ESF!I40-ESF!H40 -> -1691211.191 | S40: =IF(ISERR(R40/ESF!H40),"",(R40/ESF!H40)) -> -0.08150523146 | T40: =ESF!J40/ESF!J$17 -> 1 | U40: =ESF!J40-ESF!I40 -> 1415891.216 | V40: =IF(ISERR(U40/ESF!I40),"",(U40/ESF!I40)) -> 0.07429179331
C42: =ESF!C42 -> Datos que van al Flujo de Caja | D42: AV | E42: AV | F42: AH$ | G42: AH% | H42: AV | I42: AH$ | J42: AH% | K42: AV | L42: AH$ | M42: AH% | N42: AV | O42: AH$ | P42: AH% | Q42: AV | R42: AH$ | S42: AH% | T42: AV | U42: AH$ | V42: AH%
B43: =ESF!B43 -> 50 | C43: =ESF!C43 -> Impuestos Pagados | D43: =ESF!D43/ESF!D$17 -> 0 | E43: =ESF!E43/ESF!E$17 -> 0 | F43: =ESF!E43-ESF!D43 -> 0 | G43: =IF(ISERR(F43/ESF!D43),"",(F43/ESF!D43)) ->  | H43: =ESF!F43/ESF!F$17 -> 0 | I43: =ESF!F43-ESF!E43 -> 0 | J43: =IF(ISERR(I43/ESF!E43),"",(I43/ESF!E43)) ->  | K43: =ESF!G43/ESF!G$17 -> 0 | L43: =ESF!G43-ESF!F43 -> 0 | M43: =IF(ISERR(L43/ESF!F43),"",(L43/ESF!F43)) ->  | N43: =ESF!H43/ESF!H$17 -> 0 | O43: =ESF!H43-ESF!G43 -> 0 | P43: =IF(ISERR(O43/ESF!G43),"",(O43/ESF!G43)) ->  | Q43: =ESF!I43/ESF!I$17 -> 0 | R43: =ESF!I43-ESF!H43 -> 0 | S43: =IF(ISERR(R43/ESF!H43),"",(R43/ESF!H43)) ->  | T43: =ESF!J43/ESF!J$17 -> 0 | U43: =ESF!J43-ESF!I43 -> 0 | V43: =IF(ISERR(U43/ESF!I43),"",(U43/ESF!I43)) -> 
B44: =ESF!B44 -> 51 | C44: =ESF!C44 -> CAPEX | D44: =ESF!D44/ESF!D$17 -> 0.02260574052 | E44: =ESF!E44/ESF!E$17 -> 0.1128747818 | F44: =ESF!E44-ESF!D44 -> 729584 | G44: =IF(ISERR(F44/ESF!D44),"",(F44/ESF!D44)) -> 4.293135305 | H44: =ESF!F44/ESF!F$17 -> 0.04985523758 | I44: =ESF!F44-ESF!E44 -> -402014.409 | J44: =IF(ISERR(I44/ESF!E44),"",(I44/ESF!E44)) -> -0.4469180535 | K44: =ESF!G44/ESF!G$17 -> 0.003980706116 | L44: =ESF!G44-ESF!F44 -> -438604.496 | M44: =IF(ISERR(L44/ESF!F44),"",(L44/ESF!F44)) -> -0.8815965374 | N44: =ESF!H44/ESF!H$17 -> 0.0209244774 | O44: =ESF!H44-ESF!G44 -> 375270.0702 | P44: =IF(ISERR(O44/ESF!G44),"",(O44/ESF!G44)) -> 6.370541102 | Q44: =ESF!I44/ESF!I$17 -> 0.03362097561 | R44: =ESF!I44-ESF!H44 -> 206588.6842 | S44: =IF(ISERR(R44/ESF!H44),"",(R44/ESF!H44)) -> 0.4758165578 | T44: =ESF!J44/ESF!J$17 -> 0.03110072419 | U44: =ESF!J44-ESF!I44 -> -3997.00588 | V44: =IF(ISERR(U44/ESF!I44),"",(U44/ESF!I44)) -> -0.006237857219
B45: =ESF!B45 -> 52 | C45: =ESF!C45 -> Dividendos Pagados | D45: =ESF!D45/ESF!D$17 -> 0 | E45: =ESF!E45/ESF!E$17 -> 0.005654743904 | F45: =ESF!E45-ESF!D45 -> 45064 | G45: =IF(ISERR(F45/ESF!D45),"",(F45/ESF!D45)) ->  | H45: =ESF!F45/ESF!F$17 -> 0.006953929832 | I45: =ESF!F45-ESF!E45 -> 24330.12713 | J45: =IF(ISERR(I45/ESF!E45),"",(I45/ESF!E45)) -> 0.5399016317 | K45: =ESF!G45/ESF!G$17 -> 0.00531033532 | L45: =ESF!G45-ESF!F45 -> 9189.02327 | M45: =IF(ISERR(L45/ESF!F45),"",(L45/ESF!F45)) -> 0.132417881 | N45: =ESF!H45/ESF!H$17 -> 0.009461862885 | O45: =ESF!H45-ESF!G45 -> 117747.9085 | P45: =IF(ISERR(O45/ESF!G45),"",(O45/ESF!G45)) -> 1.498386205 | Q45: =ESF!I45/ESF!I$17 -> 0.005076197535 | R45: =ESF!I45-ESF!H45 -> -99586.27483 | S45: =IF(ISERR(R45/ESF!H45),"",(R45/ESF!H45)) -> -0.507236478 | T45: =ESF!J45/ESF!J$17 -> 0.0224869048 | U45: =ESF!J45-ESF!I45 -> 363661.2269 | V45: =IF(ISERR(U45/ESF!I45),"",(U45/ESF!I45)) -> 3.758975023
BOG2018: BOG2018RdR35pQ

Sheet Flujo de Caja
C2: FLUJO DE CAJA
D3: =Data!D4 -> 2011 | E3: =Data!E4 -> 2012 | F3: =Data!F4 -> 2013 | G3: =Data!G4 -> 2014 | H3: =Data!H4 -> 2015 | I3: =Data!I4 -> 2016 | J3: =Data!J4 -> 2017
C4: (En millones de pesos colombianos)
C5: + EBITDA | E5: =Data!E15 -> 790507 | F5: =Data!F15 -> 1042220.06 | G5: =Data!G15 -> 977618.0572 | H5: =Data!H15 -> 1245944.759 | I5: =Data!I15 -> 1605216.161 | J5: =Data!J15 -> 1795383.219
C6: Impuestos Pagados | E6: =IF((Data!E68>0),Data!E68,IF((Data!E26>0),(Data!E17*'Indicadores '!E21),0)) -> 92788.36003 | F6: =IF((Data!F68>0),Data!F68,IF((Data!F26>0),(F5*'Indicadores '!F21),0)) -> 163984.6247 | G6: =IF((Data!G68>0),Data!G68,IF((Data!G26>0),(G5*'Indicadores '!G21),0)) -> 266427.2333 | H6: =IF((Data!H68>0),Data!H68,IF((Data!H26>0),(H5*'Indicadores '!H21),0)) -> 0 | I6: =IF((Data!I68>0),Data!I68,IF((Data!I26>0),(I5*'Indicadores '!I21),0)) -> 699088.085 | J6: =IF((Data!J68>0),Data!J68,IF((Data!J26>0),(J5*'Indicadores '!J21),0)) -> 353465.9064
C7: Flujo de Caja Operativo | E7: =E5-E6 -> 697718.64 | F7: =F5-F6 -> 878235.4351 | G7: 711190.8239 | H7: 1245944.759 | I7: 906128.0764 | J7: 1441917.312
C8: Inversión en Capital de Trabajo (a+b+c) | E8: =SUM(E9:E11) -> 11830 | F8: =(SUM(F9:F11)) -> -134438.276 | G8: =SUM(G9:G11) -> 293026.2327 | H8: -448916.6276 | I8: 171120.0596 | J8: 449230.2273
C9: a.Cuentas por Cobrar a Clientes | E9: =(Data!E32+Data!E33)-(Data!D32+Data!D33) -> 13738 | F9: =(Data!F32+Data!F33)-(Data!E32+Data!E33) -> 144164.9283 | G9: =(Data!G32+Data!G33)-(Data!F32+Data!F33) -> 191695.7676 | H9: =(Data!H32+Data!H33)-(Data!G32+Data!G33) -> -31361.89258 | I9: =(Data!I32+Data!I33)-(Data!H32+Data!H33) -> 29404.20749 | J9: =(Data!J32+Data!J33)-(Data!I32+Data!I33) -> -49930.14683
C10: b.Inventarios | E10: =Data!E34-Data!D34 -> -3744 | F10: =Data!F34-Data!E34 -> 13861.42914 | G10: =Data!G34-Data!F34 -> 52710.2471 | H10: =Data!H34-Data!G34 -> 61446.07672 | I10: =Data!I34-Data!H34 -> 30561.72406 | J10: =Data!J34-Data!I34 -> 43043.55498
C11: c.Cuentas por pagar a Proveedores | E11: =Data!D45-Data!E45 -> 1836 | F11: =Data!E45-Data!F45 -> -292464.6335 | G11: =Data!F45-Data!G45 -> 48620.218 | H11: =Data!G45-Data!H45 -> -479000.8117 | I11: =Data!H45-Data!I45 -> 111154.128 | J11: =Data!I45-Data!J45 -> 456116.8192
C12: CAPEX | E12: =Data!E69 -> 899526 | F12: =Data!F69 -> 497511.591 | G12: =Data!G69 -> 58907.09505 | H12: =Data!H69 -> 434177.1653 | I12: =Data!I69 -> 640765.8495 | J12: =Data!J69 -> 636768.8436
C13: Flujo de Caja Libre | E13: =E7-E8-E12 -> -213637.36 | F13: =F7-F8-F12 -> 515162.1201 | G13: 359257.4962 | H13: 1260684.222 | I13: 94242.16735 | J13: 355918.2413
C14: Gastos de Intereses | E14: =Data!E18 -> 177978 | F14: =Data!F18 -> 213007.1349 | G14: =Data!G18 -> 270975.0586 | H14: =Data!H18 -> 469519.9709 | I14: =Data!I18 -> 524810.7367 | J14: =Data!J18 -> 542208.0566
C15: Porción corriente de DFLP | E15: =Data!E47 -> 0 | F15: =Data!F47 -> 521203.6613 | G15: =Data!G47 -> 1019893.736 | H15: =Data!H47 -> 1221452.651 | I15: =Data!I47 -> 1131714.776 | J15: =Data!J47 -> 1619160.176
C16: Flujo de Caja Disponible para el Accionista | E16: =E13-E14-E15 -> -391615.36 | F16: =F13-F14-F15 -> -219048.6761 | G16: -931611.2982 | H16: -430288.4003 | I16: -1562283.345 | J16: -1805449.991
C17: Dividendos Pagados | E17: =IF(Data!E70,Data!E70,'Indicadores '!E50) -> 45064 | F17: =IF(Data!F70,Data!F70,'Indicadores '!F50) -> 69394.12713 | G17: =IF(Data!G70,Data!G70,'Indicadores '!G50) -> 78583.1504 | H17: =IF(Data!H70,Data!H70,'Indicadores '!H50) -> 196331.0589 | I17: =IF(Data!I70,Data!I70,'Indicadores '!I50) -> 96744.78407 | J17: =IF(Data!J70,Data!J70,'Indicadores '!J50) -> 460406.011
C18: Flujo de Caja Disponible para Reinversión | E18: =E16-E17 -> -436679.36 | F18: =F16-F17 -> -288442.8033 | G18: -1010194.449 | H18: -626619.4592 | I18: -1659028.129 | J18: -2265856.002
BOH2018: BOG2018RdR35pQ

Sheet Indicadores
C2: INDICADORES
D3: 2011 | E3: =D3+1 -> 2012 | F3: 2013 | G3: 2014 | H3: 2015 | I3: 2016 | J3: 2017
C5: Operación
C6: Ventas Netas | D6: =Data!D11 -> 7064783 | E6: =Data!E11 -> 7648822 | F6: =Data!F11 -> 8663889.006 | G6: =Data!G11 -> 9487993.253 | H6: =Data!H11 -> 12087674.65 | I6: =Data!I11 -> 12580919.97 | J6: =Data!J11 -> 13136369.26
C7: Variación Ventas Netas | D7: N/A | E7: =Data!E11-Data!D11 -> 584039 | F7: =Data!F11-Data!E11 -> 1015067.006 | G7: =Data!G11-Data!F11 -> 824104.2472 | H7: =Data!H11-Data!G11 -> 2599681.395 | I7: =Data!I11-Data!H11 -> 493245.3219 | J7: =Data!J11-Data!I11 -> 555449.2933
C8: Utilidad Bruta | D8: =Data!D13 -> 2194561 | E8: =Data!E13 -> 2254244 | F8: =Data!F13 -> 2624297.522 | G8: =Data!G13 -> 2526531.824 | H8: =Data!H13 -> 3432614.563 | I8: =Data!I13 -> 3833231.24 | J8: =Data!J13 -> 3844758.255
C9: Margen Bruto % | D9: =(Data!D13/Data!D11) -> 0.3106338864 | E9: =(Data!E13/Data!E11) -> 0.294717801 | F9: =(Data!F13/Data!F11) -> 0.3029006396 | G9: =(Data!G13/Data!G11) -> 0.2662872703 | H9: =(Data!H13/Data!H11) -> 0.2839764192 | I9: =(Data!I13/Data!I11) -> 0.3046860841 | J9: =(Data!J13/Data!J11) -> 0.2926804338
C10: Variación Utilidad Bruta | D10: N/A | E10: =Data!E13-Data!D13 -> 59683 | F10: =Data!F13-Data!E13 -> 370053.5216 | G10: =Data!G13-Data!F13 -> -97765.69721 | H10: =Data!H13-Data!G13 -> 906082.7386 | I10: =Data!I13-Data!H13 -> 400616.6776 | J10: =Data!J13-Data!I13 -> 11527.01442
C11: EBITDA | D11: =Data!D15 -> 837637 | E11: =Data!E15 -> 790507 | F11: =Data!F15 -> 1042220.06 | G11: =Data!G15 -> 977618.0572 | H11: =Data!H15 -> 1245944.759 | I11: =Data!I15 -> 1605216.161 | J11: =Data!J15 -> 1795383.219
C12: Margen EBITDA % | D12: =Data!D15/Data!D11 -> 0.1185651421 | E12: =Data!E15/Data!E11 -> 0.1033501629 | F12: =Data!F15/Data!F11 -> 0.1202947151 | G12: =Data!G15/Data!G11 -> 0.1030373896 | H12: =Data!H15/Data!H11 -> 0.1030756366 | I12: =Data!I15/Data!I11 -> 0.1275913181 | J12: =Data!J15/Data!J11 -> 0.1366727124
C13: Variación EBITDA | D13: N/A | E13: =Data!E15-Data!D15 -> -47130 | F13: =Data!F15-Data!E15 -> 251713.0598 | G13: =Data!G15-Data!F15 -> -64602.00258 | H13: =Data!H15-Data!G15 -> 268326.7022 | I13: =Data!I15-Data!H15 -> 359271.402 | J13: =Data!J15-Data!I15 -> 190167.0572
C14: Utilidad Operacional | D14: =Data!D17 -> 446881 | E14: =Data!E17 -> 474554 | F14: =Data!F17 -> 723489.3624 | G14: =Data!G17 -> 574249.8422 | H14: =Data!H17 -> 606459.4848 | I14: =Data!I17 -> 785772.0623 | J14: =Data!J17 -> 868458.0029
C15: Margen Operacional % | D15: =Data!D17/Data!D11 -> 0.06325473833 | E15: =Data!E17/Data!E11 -> 0.06204275639 | F15: =Data!F17/Data!F11 -> 0.08350630553 | G15: =Data!G17/Data!G11 -> 0.06052384597 | H15: =Data!H17/Data!H11 -> 0.05017172471 | I15: =Data!I17/Data!I11 -> 0.06245744064 | J15: =Data!J17/Data!J11 -> 0.06611096152
C16: Variación Utilidad Operacional | D16: N/A | E16: =Data!E17-Data!D17 -> 27673 | F16: =Data!F17-Data!E17 -> 248935.3624 | G16: =Data!G17-Data!F17 -> -149239.5202 | H16: =Data!H17-Data!G17 -> 32209.64255 | I16: =Data!I17-Data!H17 -> 179312.5775 | J16: =Data!J17-Data!I17 -> 82685.94058
C17: Utilidad Neta del Ejercicio | D17: =Data!D26 -> 202217 | E17: =Data!E26 -> 351684 | F17: =Data!F26 -> 467666.5341 | G17: =Data!G26 -> 243108.5501 | H17: =Data!H26 -> -386647.8543 | I17: =Data!I26 -> 134329.4167 | J17: =Data!J26 -> 242611.2806
C18: Margen Neto % (ROS) | D18: =Data!D26/Data!D11 -> 0.02862324292 | E18: =Data!E26/Data!E11 -> 0.04597884485 | F18: =Data!F26/Data!F11 -> 0.05397882334 | G18: =Data!G26/Data!G11 -> 0.02562275749 | H18: =Data!H26/Data!H11 -> -0.0319869508 | I18: =Data!I26/Data!I11 -> 0.01067723323 | J18: =Data!J26/Data!J11 -> 0.01846867089
C19: Variación Utilidad Neta del Ejercicio | D19: N/A | E19: =Data!E26-Data!D26 -> 149467 | F19: =Data!F26-Data!E26 -> 115982.5341 | G19: =Data!G26-Data!F26 -> -224557.984 | H19: =Data!H26-Data!G26 -> -629756.4044 | I19: =Data!I26-Data!H26 -> 520977.271 | J19: =Data!J26-Data!I26 -> 108281.8639
C20: Crecimiento Sostenible
C21: Tasa Impositiva | D21: =Data!D25/Data!D24 -> 0.2786465951 | E21: =Data!E25/Data!E24 -> 0.1955275059 | F21: =Data!F25/Data!F24 -> 0.1573416508 | G21: =Data!G25/Data!G24 -> 0.2725269152 | H21: =Data!H25/Data!H24 -> -0.2860303472 | I21: =Data!I25/Data!I24 -> 0.4355102458 | J21: =Data!J25/Data!J24 -> 0.1968749082
C23: Actividad
C24: Días Promedio Cartera | D24: =ROUNDUP(360/(Data!D11/Data!D32),0) -> 13 | E24: =ROUNDUP(360/(Data!E11/Data!E32),0) -> 13 | F24: =ROUNDUP(360/(Data!F11/Data!F32),0) -> 18 | G24: =ROUNDUP(360/(Data!G11/Data!G32),0) -> 24 | H24: =ROUNDUP(360/(Data!H11/Data!H32),0) -> 18 | I24: =ROUNDUP(360/(Data!I11/Data!I32),0) -> 18 | J24: =ROUNDUP(360/(Data!J11/Data!J32),0) -> 16
C25: Días Promedio Inventario | D25: =ROUNDUP(360/(Data!D12/Data!D34),0) -> 7 | E25: =ROUNDUP(360/(Data!E12/Data!E34),0) -> 6 | F25: =ROUNDUP(360/(Data!F12/Data!F34),0) -> 7 | G25: =ROUNDUP(360/(Data!G12/Data!G34),0) -> 9 | H25: =ROUNDUP(360/(Data!H12/Data!H34),0) -> 10 | I25: =ROUNDUP(360/(Data!I12/Data!I34),0) -> 11 | J25: =ROUNDUP(360/(Data!J12/Data!J34),0) -> 12
C26: Días Promedio Pago a Proveedores | D26: =ROUNDUP(360/(Data!D12/Data!D45),0) -> 26 | E26: =ROUNDUP(360/(Data!E12/Data!E45),0) -> 24 | F26: =ROUNDUP(360/(Data!F12/Data!F45),0) -> 39 | G26: =ROUNDUP(360/(Data!G12/Data!G45),0) -> 31 | H26: =ROUNDUP(360/(Data!H12/Data!H45),0) -> 45 | I26: =ROUNDUP(360/(Data!I12/Data!I45),0) -> 40 | J26: =ROUNDUP(360/(Data!J12/Data!J45),0) -> 20
C27: Ciclo de Conversión de Efectivo | D27: =(D24+D25)-D26 -> -6 | E27: =(E24+E25)-E26 -> -5 | F27: -14 | G27: 2 | H27: -17 | I27: -11 | J27: 8
C28: Ciclo de Operación | D28: =D24+D25 -> 20 | E28: =E24+E25 -> 19 | F28: 25 | G28: 33 | H28: 28 | I28: 29 | J28: 28
C29: Rotación Cartera | D29: =Data!D11/Data!D32 -> 27.96970153 | E29: =Data!E11/Data!E32 -> 28.28329808 | F29: =Data!F11/Data!F32 -> 20.80147584 | G29: =Data!G11/Data!G32 -> 15.30129528 | H29: =Data!H11/Data!H32 -> 20.43273276 | I29: =Data!I11/Data!I32 -> 20.33005896 | J29: =Data!J11/Data!J32 -> 23.1088998
C30: Rotación Inventario | D30: =Data!D12/Data!D34 -> 52.7599909 | E30: =Data!E12/Data!E34 -> 60.91094676 | F30: =Data!F12/Data!F34 -> 58.96516685 | G30: =Data!G12/Data!G34 -> 44.87308609 | H30: =Data!H12/Data!H34 -> 39.96190817 | I30: =Data!I12/Data!I34 -> 35.39504032 | J30: =Data!J12/Data!J34 -> 32.0192771
C31: Rotación Proveedores | D31: =Data!D12/Data!D45 -> 13.9170672 | E31: =Data!E12/Data!E45 -> 15.49676252 | F31: =Data!F12/Data!F45 -> 9.428396269 | G31: =Data!G12/Data!G45 -> 11.76013093 | H31: =Data!H12/Data!H45 -> 8.081626445 | I31: =Data!I12/Data!I45 -> 9.114064088 | J31: =Data!J12/Data!J45 -> 18.44729204
C32: Rotación de Activos Totales (RAT / ATO) | D32: =Data!D11/Data!D42 -> 0.9397597493 | E32: =Data!E11/Data!E42 -> 0.9597933956 | F32: =Data!F11/Data!F42 -> 0.8682013697 | G32: =Data!G11/Data!G42 -> 0.6411606742 | H32: =Data!H11/Data!H42 -> 0.5825462398 | I32: =Data!I11/Data!I42 -> 0.6601207038 | J32: =Data!J11/Data!J42 -> 0.6415995404
C34: Liquidez
C35: Razón Corriente | D35: =Data!D36/Data!D51 -> 0.7436020843 | E35: =Data!E36/Data!E51 -> 0.7368051476 | F35: =Data!F36/Data!F51 -> 0.7810660879 | G35: =Data!G36/Data!G51 -> 0.7015621179 | H35: =Data!H36/Data!H51 -> 0.6614355917 | I35: =Data!I36/Data!I51 -> 0.6010435182 | J35: =Data!J36/Data!J51 -> 0.6650916072
C36: Prueba Acida | D36: =(Data!D36-Data!D34)/Data!D51 -> 0.7052698195 | E36: =(Data!E36-Data!E34)/Data!E51 -> 0.7038305823 | F36: =(Data!F36-Data!F34)/Data!F51 -> 0.7490090343 | G36: =(Data!G36-Data!G34)/Data!G51 -> 0.6672414651 | H36: =(Data!H36-Data!H34)/Data!H51 -> 0.6175303154 | I36: =(Data!I36-Data!I34)/Data!I51 -> 0.5523432446 | J36: =(Data!J36-Data!J34)/Data!J51 -> 0.6142041057
C37: Prueba Super Acida | D37: =(Data!D36-Data!D34-(Data!D32+Data!D33))/Data!D51 -> 0.609172353 | E37: =(Data!E36-Data!E34-(Data!E32+Data!E33))/Data!E51 -> 0.6125550941 | F37: =(Data!F36-Data!F34-(Data!F32+Data!F33))/Data!F51 -> 0.6271617163 | G37: =(Data!G36-Data!G34-(Data!G32+Data!G33))/Data!G51 -> 0.5387046817 | H37: =(Data!H36-Data!H34-(Data!H32+Data!H33))/Data!H51 -> 0.5061058648 | I37: =(Data!I36-Data!I34-(Data!I32+Data!I33))/Data!I51 -> 0.4382391932 | J37: =(Data!J36-Data!J34-(Data!J32+Data!J33))/Data!J51 -> 0.5214163604
C38: Capital de Trabajo | D38: =Data!D36-Data!D51 -> -617439 | E38: =Data!E36-Data!E51 -> -706904 | F38: =Data!F36-Data!F51 -> -699522.1437 | G38: =Data!G36-Data!G51 -> -1349002.926 | H38: =Data!H36-Data!H51 -> -1670122.998 | I38: =Data!I36-Data!I51 -> -2024627.048 | J38: =Data!J36-Data!J51 -> -1909828.632
C39: Capital de Trabajo Operativo | D39: =(Data!D32+Data!D33)+Data!D34-Data!D45 -> -26222 | E39: =(Data!E32+Data!E33)+Data!E34-Data!E45 -> -14392 | F39: =(Data!F32+Data!F33)+Data!F34-Data!F45 -> -148830.276 | G39: =(Data!G32+Data!G33)+Data!G34-Data!G45 -> 144195.9567 | H39: =(Data!H32+Data!H33)+Data!H34-Data!H45 -> -304720.6709 | I39: =(Data!I32+Data!I33)+Data!I34-Data!I45 -> -133600.6113 | J39: =(Data!J32+Data!J33)+Data!J34-Data!J45 -> 315629.616
C40: Variación Capital de Trabajo Operativo | D40: N/A | E40: =E39-D39 -> 11830 | F40: =F39-E39 -> -134438.276 | G40: 293026.2327 | H40: -448916.6276 | I40: 171120.0596 | J40: 449230.2273
C41: Capital de Trabajo / Ventas Netas | D41: =D38/Data!D11 -> -0.08739673957 | E41: =E38/Data!E11 -> -0.0924199831 | F41: =F38/Data!F11 -> -0.08073997061 | G41: =G38/Data!G11 -> -0.1421800047 | H41: =H38/Data!H11 -> -0.1381674347 | I41: =I38/Data!I11 -> -0.1609283783 | J41: =J38/Data!J11 -> -0.1453848163
C42: Capital de Trabajo Operativo / Ventas Netas | D42: =D39/Data!D11 -> -0.003711649742 | E42: =E39/Data!E11 -> -0.001881596931 | F42: =F39/Data!F11 -> -0.01717822977 | G42: =G39/Data!G11 -> 0.01519772968 | H42: =H39/Data!H11 -> -0.02520920523 | I42: =I39/Data!I11 -> -0.01061930381 | J42: =J39/Data!J11 -> 0.02402715771
C43: FCDR / EBITDA | D43: N/A | E43: ='Flujo de Caja'!E18/'Flujo de Caja'!E5 -> -0.552404166 | F43: ='Flujo de Caja'!F18/'Flujo de Caja'!F5 -> -0.2767580613 | G43: ='Flujo de Caja'!G18/'Flujo de Caja'!G5 -> -1.033322207 | H43: ='Flujo de Caja'!H18/'Flujo de Caja'!H5 -> -0.5029271599 | I43: ='Flujo de Caja'!I18/'Flujo de Caja'!I5 -> -1.033523191 | J43: ='Flujo de Caja'!J18/'Flujo de Caja'!J5 -> -1.262045885
C45: Rentabilidad
C46: Rentabilidad de las Ventas (ROS) | D46: =Data!D26/Data!D11 -> 0.02862324292 | E46: =Data!E26/Data!E11 -> 0.04597884485 | F46: =Data!F26/Data!F11 -> 0.05397882334 | G46: =Data!G26/Data!G11 -> 0.02562275749 | H46: =Data!H26/Data!H11 -> -0.0319869508 | I46: =Data!I26/Data!I11 -> 0.01067723323 | J46: =Data!J26/Data!J11 -> 0.01846867089
C47: Rentabilidad del Activo Total (ROA) | D47: =Data!D26/Data!D42 -> 0.02689897159 | E47: =Data!E26/Data!E42 -> 0.04413019162 | F47: =Data!F26/Data!F42 -> 0.04686448836 | G47: =Data!G26/Data!G42 -> 0.01642830446 | H47: =Data!H26/Data!H42 -> -0.01863387791 | I47: =Data!I26/Data!I42 -> 0.007048262713 | J47: =Data!J26/Data!J42 -> 0.01184949076
C48: Rentabilidad del Activo Fijo (ROFA) | D48: =Data!D26/Data!D37 -> 0.05650775128 | E48: =Data!E26/Data!E37 -> 0.08552911418 | F48: =Data!F26/Data!F37 -> 0.07506527864 | G48: =Data!G26/Data!G37 -> 0.02460240881 | H48: =Data!H26/Data!H37 -> -0.02669205718 | I48: =Data!I26/Data!I37 -> 0.00962721746 | J48: =Data!J26/Data!J37 -> 0.0166571977
C49: Rentabilidad del Patrimonio (ROE) | D49: =Data!D26/Data!D63 -> 0.1111170334 | E49: =Data!E26/Data!E63 -> 0.1679723284 | F49: =Data!F26/Data!F63 -> 0.1998054896 | G49: =Data!G26/Data!G63 -> 0.08415242009 | H49: =Data!H26/Data!H63 -> -0.08943820203 | I49: =Data!I26/Data!I63 -> 0.03151947259 | J49: =Data!J26/Data!J63 -> 0.06068824996
C50: Dividendos Pagados | D50: N/A | E50: =((Data!D61+Data!D62)-(Data!E61))-(Data!E48-Data!D48) -> 45064 | F50: =((Data!E61+Data!E62)-(Data!F61))-(Data!F48-Data!E48) -> 410021.6675 | G50: =((Data!F61+Data!F62)-(Data!G61))-(Data!G48-Data!F48) -> 89623.01623 | H50: =((Data!G61+Data!G62)-(Data!H61))-(Data!H48-Data!G48) -> -1153845.474 | I50: =((Data!H61+Data!H62)-(Data!I61))-(Data!I48-Data!H48) -> 97096.71327 | J50: =((Data!I61+Data!I62)-(Data!J61))-(Data!J48-Data!I48) -> 299086.8841
C51: Variación de Dividendos Pagados | D51: N/A | E51: N/A | F51: =F50-E50 -> 364957.6675 | G51: =G50-F50 -> -320398.6512 | H51: -1243468.49 | I51: 1250942.187 | J51: 201990.1709
C52: Factor de Distribución de Dividendos % | D52: N/A | E52: =E50/Data!D26 -> 0.222849711 | F52: =F50/Data!E26 -> 1.165880926 | G52: =G50/Data!F26 -> 0.1916387205 | H52: =H50/Data!G26 -> -4.746215109 | I52: =I50/Data!H26 -> -0.2511244074 | J52: =J50/Data!I26 -> 2.226518148
C54: Endeudamiento y Estructura de Capital
C55: Gasto de Intereses | D55: =Data!D18 -> 183772 | E55: =Data!E18 -> 177978 | F55: =Data!F18 -> 213007.1349 | G55: =Data!G18 -> 270975.0586 | H55: =Data!H18 -> 469519.9709 | I55: =Data!I18 -> 524810.7367 | J55: =Data!J18 -> 542208.0566
C56: Total Deuda Financiera (TDF) | D56: =Data!D46+Data!D47+Data!D49+Data!D52 -> 3179429 | E56: =Data!E46+Data!E47+Data!E49+Data!E52 -> 3244319 | F56: =Data!F46+Data!F47+Data!F49+Data!F52 -> 4365223.731 | G56: =Data!G46+Data!G47+Data!G49+Data!G52 -> 7588859.195 | H56: =Data!H46+Data!H47+Data!H49+Data!H52 -> 10938090.41 | I56: =Data!I46+Data!I47+Data!I49+Data!I52 -> 9825029.707 | J56: =Data!J46+Data!J47+Data!J49+Data!J52 -> 11196305.19
C57: Variación TDF | D57: N/A | E57: =E56-D56 -> 64890 | F57: =F56-E56 -> 1120904.731 | G57: 3223635.465 | H57: 3349231.218 | I57: -1113060.706 | J57: 1371275.485
C58: Nivel de Endeudamiento Financiero - TDF / EBITDA | D58: =D56/D11 -> 3.795712224 | E58: =E56/E11 -> 4.104099015 | F58: 4.188389668 | G58: 7.762601293 | H58: 8.778952944 | I58: 6.120689501 | J58: 6.236164556
C59: Nivel de Endeudamiento Financiero - TDF / Ventas | D59: =D56/D6 -> 0.450039159 | E59: =E56/E6 -> 0.4241593019 | F59: 0.503841142 | G59: 0.7998381737 | H59: 0.9048961633 | I59: 0.7809468409 | J59: 0.8523135249
C60: Costo Promedio de la Deuda Financiera | D60: N/A | E60: =(((D55+E55)/2)/((E56+D56)/2)) -> 0.0563144756 | F60: =(((E55+F55)/2)/((F56+E56)/2)) -> 0.05138089748 | G60: 0.04048676896 | H60: 0.03996853476 | I60: 0.04788927203 | J60: 0.0507588504
C61: Cubrimiento de Intereses | D61: =D11/D55 -> 4.558022985 | E61: =E11/E55 -> 4.441599524 | F61: 4.892888026 | G61: 3.607778746 | H61: 2.653656579 | I61: 3.058657244 | J61: 3.311244082
C62: Cubrimiento Servicio de la Deuda (CSD) | D62: =Data!D15/(Data!D18+Data!D47) -> 4.558022985 | E62: =Data!E15/(Data!E18+Data!E47) -> 4.441599524 | F62: =Data!F15/(Data!F18+Data!F47) -> 1.419510671 | G62: =Data!G15/(Data!G18+Data!G47) -> 0.7573334033 | H62: =Data!H15/(Data!H18+Data!H47) -> 0.7368213673 | I62: =Data!I15/(Data!I18+Data!I47) -> 0.9690259216 | J62: =Data!J15/(Data!J18+Data!J47) -> 0.8306697542
C63: Nivel de Endeudamiento Total (NET) | D63: =Data!D55/Data!D42 -> 0.7579221586 | E63: =Data!E55/Data!E42 -> 0.7372770144 | F63: =Data!F55/Data!F42 -> 0.7654494455 | G63: =Data!G55/Data!G42 -> 0.8047791799 | H63: =Data!H55/Data!H42 -> 0.7916563896 | I63: =Data!I55/Data!I42 -> 0.7763838626 | J63: =Data!J55/Data!J42 -> 0.8047481883
C64: Concentración del Endeudamiento | D64: =Data!D51/Data!D55 -> 0.4226423148 | E64: =Data!E51/Data!E55 -> 0.4571256137 | F64: =Data!F51/Data!F55 -> 0.4182919468 | G64: =Data!G51/Data!G55 -> 0.3795550023 | H64: =Data!H51/Data!H55 -> 0.3003018969 | I64: =Data!I51/Data!I55 -> 0.3429682864 | J64: =Data!J51/Data!J55 -> 0.3460963805
C65: Apalancamiento Financiero | D65: =D56/Data!D63 -> 1.747077241 | E65: =E56/Data!E63 -> 1.549561017 | F65: =F56/Data!F63 -> 1.864994822 | G65: =G56/Data!G63 -> 2.626895955 | H65: =H56/Data!H63 -> 2.530165703 | I65: =I56/Data!I63 -> 2.305375561 | J65: =J56/Data!J63 -> 2.800711353
C66: Apalancamiento Total | D66: =Data!D55/Data!D63 -> 3.130902665 | E66: =Data!E55/Data!E63 -> 2.806290485 | F66: =Data!F55/Data!F63 -> 3.263473187 | G66: =Data!G55/Data!G63 -> 4.122404462 | H66: =Data!H55/Data!H63 -> 3.799763229 | I66: =Data!I55/Data!I63 -> 3.47194917 | J66: =Data!J55/Data!J63 -> 4.121591401
C68: Datos del Flujo de Caja
C69: CAPEX | D69: =Data!D69 -> 169942 | E69: =Data!E69 -> 899526 | F69: =Data!F69 -> 497511.591 | G69: =Data!G69 -> 58907.09505 | H69: =Data!H69 -> 434177.1653 | I69: =Data!I69 -> 640765.8495 | J69: =Data!J69 -> 636768.8436
C70: Variación CAPEX | D70: N/A | E70: =E69-D69 -> 729584 | F70: =F69-E69 -> -402014.409 | G70: -438604.496 | H70: 375270.0702 | I70: 206588.6842 | J70: -3997.00588
C71: Flujo de Caja Libre | D71: N/A | E71: ='Flujo de Caja'!E13 -> -213637.36 | F71: ='Flujo de Caja'!F13 -> 515162.1201 | G71: ='Flujo de Caja'!G13 -> 359257.4962 | H71: ='Flujo de Caja'!H13 -> 1260684.222 | I71: ='Flujo de Caja'!I13 -> 94242.16735 | J71: ='Flujo de Caja'!J13 -> 355918.2413
C72: Variación del Flujo de Caja Libre | D72: N/A | E72: N/A | F72: =F71-E71 -> 728799.4801 | G72: =G71-F71 -> -155904.6239 | H72: 901426.7256 | I72: -1166442.054 | J72: 261676.074
C73: Flujo de Caja Disponible para el Accionista | D73: N/A | E73: ='Flujo de Caja'!E16 -> -391615.36 | F73: ='Flujo de Caja'!F16 -> -219048.6761 | G73: ='Flujo de Caja'!G16 -> -931611.2982 | H73: ='Flujo de Caja'!H16 -> -430288.4003 | I73: ='Flujo de Caja'!I16 -> -1562283.345 | J73: ='Flujo de Caja'!J16 -> -1805449.991
C74: Variación del Flujo de Caja Disponible para el Accionista | D74: N/A | E74: N/A | F74: =F73-E73 -> 172566.6839 | G74: =G73-F73 -> -712562.6221 | H74: 501322.8979 | I74: -1131994.945 | J74: -243166.6462
C75: Flujo de Caja Disponible para Reinversión | D75: N/A | E75: ='Flujo de Caja'!E18 -> -436679.36 | F75: ='Flujo de Caja'!F18 -> -288442.8033 | G75: ='Flujo de Caja'!G18 -> -1010194.449 | H75: ='Flujo de Caja'!H18 -> -626619.4592 | I75: ='Flujo de Caja'!I18 -> -1659028.129 | J75: ='Flujo de Caja'!J18 -> -2265856.002
C76: Variación del Flujo de Caja Disponible para Reinversión | D76: N/A | E76: N/A | F76: =F75-E75 -> 148236.5568 | G76: =G75-F75 -> -721751.6453 | H76: 383574.9894 | I76: -1032408.67 | J76: -606827.8731
BOG2018: BOG2018RdR35pQ

Sheet Gráficas
BOG2018: BOG2018RdR35pQ
